Cogmind - Beta 16.1 @@@ ROGUE MODE // 2026.02.22 @ 05:28:23 // Winter2019/RPGLIKE Player: naththebg Result: Self-destructed Performance ------------- Evolutions (9) 4500 Regions Visited (30) 6000 Robots Destroyed (2197) 10985 Value Destroyed (143080) 143080 Prototype IDs (184) 3680 Alien Tech Used (3) 600 Bonus (156731) 156731 TOTAL SCORE: 325576 Bonus ------- Triggered High Security 5500 High Alert Combat Kills 109959 Follower Combat Kills 1098 Hunted by Unchained 500 Entered Garrisons 800 Network Hubs Disabled 800 Acquired ECA 300 Met Warlord at Base 500 MAIN.C Attacked Warlord 500 Warlord Defense Kills 12490 Built Enhanced Grunts 300 A7 Reached Mainframe 300 Met R17 at Cetus 500 Used Core Reset Matrix 3000 Met Warlord at Research 2000 Invited to Help at Command 2000 Scanned by Researcher 500 Met Sigix 2000 Destroyed Superfortress 15000 Friendly Fire -1316 Cogmind --------- Core Integrity 760/2400 Matter 300/300 Energy 641/650 System Corruption 16% Temperature Cool (15) Movement Flying (12) Location -1/Command Parts ------- > --- POWER (2) -------- Improved Quantum Reactor Improved Quantum Reactor > --- PROPULSION (6) --- Improved Diametric Drive Cooled Q-thruster Cooled Q-thruster Experimental Q-thruster Experimental Q-thruster (fused) Experimental Biomechanical Wings > --- UTILITY (10) ----- Concept Dimensional Manipulator Experimental Signal Interpreter Experimental Melee Analysis Suite Experimental Core Analyzer Concept Core Analysis Suite Experimental Armor Integrity Analyzer Femtoactuators Improved Actuator Array > --- WEAPON (7) ------- Concept Deflector Sword Plasma Lance (fused) Plasma Lance Experimental Jetlance Experimental Jetlance > --- INVENTORY (3) ---- Advanced Recalibrator High-powered Transdimensional Reconstructor Subatomic Replicator Peak State ------------ > --- POWER ------------ Improved Quantum Reactor Experimental Antimatter Reactor > --- PROPULSION ------- Improved Diametric Drive Cooled Q-thruster Cooled Q-thruster Cooled Q-thruster Experimental Q-thruster Experimental Q-thruster > --- UTILITY ---------- Concept Dimensional Manipulator Experimental Signal Interpreter Experimental Melee Analysis Suite Concept Melee Reflex Suite Concept Core Analysis Suite Experimental Armor Integrity Analyzer Femtoactuators Advanced Force Booster Experimental Reaction Control System Experimental Cloaking Device > --- WEAPON ----------- Concept Deflector Sword Concept Deflector Sword Plasma Lance Plasma Lance Experimental Jetlance Experimental Jetlance Experimental Jetlance > --- INVENTORY -------- Advanced Recalibrator High-powered Transdimensional Reconstructor Subatomic Replicator [Rating: 255] Favorites ----------- Power Improved Quantum Reactor Engine Light Ion Engine Power Core Enhanced Nuclear Core Reactor Improved Quantum Reactor Propulsion Improved Diametric Drive Treads Light Treads Leg Aluminum Leg Wheel Wheel Hover Unit Aerolev Unit Flight Unit Improved Diametric Drive Utility Microactuators Device Microactuators Processor Improved Armor Integrity Analyzer Hackware Hacking Suite Protection Layered Medium Armor Plating Weapon Kinetic Spear Energy Gun Small Laser Energy Cannon Cooled Particle Cannon Launcher Rocket Launcher Impact Weapon Makeshift Hammer Slashing Weapon Concept Deflector Sword Piercing Weapon Kinetic Spear Build | -11 -10 -10 -10 -8 -8 -7 -7 -7 -6 -6 -6 -6 -5 -5 -5 -5 -4 -4 -4 -4 -4 -4 -4 -3 -3 -2 -2 -2 -1 -1 ------- Run | Yrd Mat Min Sub Mat Gar Fac Low Low Fac Gar Fac Gar Fac Upp Upp War Pro Fac Ext Cet Arc Hub Gar Res Qua Res Tes Frg Acc Com Slots Evolved 21 | 3 1 1 1 3 2 2 1 . 1 . . 1 1 . . 1 . . . . . 1 . 1 . . . 1 . . Power 1 | . . . . . . . . . . . . . . . . . . . . . . . . . . . . 1 . . Propulsion 5 | 1 . . 1 . 1 1 . . . . . 1 . . . . . . . . . . . . . . . . . . Utility 9 | 1 . 1 . 2 . 1 1 . 1 . . . 1 . . . . . . . . . . 1 . . . . . . Weapon 6 | 1 1 . . 1 1 . . . . . . . . . . 1 . . . . . 1 . . . . . . . . Parts Attached 228 | 8 9 1 8 16 3 23 1 5 1 . 11 8 7 . . 12 . 13 . . . 7 1 11 4 13 12 45 6 3 Power 17 | 1 1 . . 2 . 2 . . . . 1 . 1 . . . . . . . . . . 2 . . . 5 1 1 Engine 3 | 1 1 . . 1 . . . . . . . . . . . . . . . . . . . . . . . . . . Core 7 | . . . . 1 . 2 . . . . 1 . 1 . . . . . . . . . . . . . . 2 . . Reactor 7 | . . . . . . . . . . . . . . . . . . . . . . . . 2 . . . 3 1 1 Propulsion 63 | 5 3 . 2 4 1 11 . 4 . . 4 2 . . . 2 . 5 . . . 1 . 5 1 7 3 2 1 . Treads 5 | 2 2 . . . 1 . . . . . . . . . . . . . . . . . . . . . . . . . Leg 3 | 2 . . . . . . . . . . . . . . . . . . . . . 1 . . . . . . . . Wheel 1 | 1 . . . . . . . . . . . . . . . . . . . . . . . . . . . . . . Hover 2 | . . . . 1 . 1 . . . . . . . . . . . . . . . . . . . . . . . . Flight 52 | . 1 . 2 3 . 10 . 4 . . 4 2 . . . 2 . 5 . . . . . 5 1 7 3 2 1 . Utility 88 | . 3 . 1 9 1 7 . 1 1 . 4 2 5 . . 6 . 1 . . . 3 1 3 . 2 8 24 4 2 Device 51 | . 1 . . 4 . 4 . 1 . . 3 1 3 . . 1 . . . . . 3 1 3 . . 5 17 3 1 Storage . | . . . . . . . . . . . . . . . . . . . . . . . . . . . . . . . Processor 29 | . 1 . . 2 1 2 . . . . 1 1 2 . . 5 . 1 . . . . . . . 2 2 7 1 1 Hackware 3 | . 1 . 1 1 . . . . . . . . . . . . . . . . . . . . . . . . . . Protection 5 | . . . . 2 . 1 . . 1 . . . . . . . . . . . . . . . . . 1 . . . Artifact . | . . . . . . . . . . . . . . . . . . . . . . . . . . . . . . . Weapon 60 | 2 2 1 5 1 1 3 1 . . . 2 4 1 . . 4 . 7 . . . 3 . 1 3 4 1 14 . . Energy Gun 6 | 2 . . 1 . . . . . . . . . . . . 2 . . . . . . . . . . . 1 . . Energy Cannon 4 | . . . . . . 1 . . . . 1 . . . . . . . . . . 1 . . . . 1 . . . Ballistic Gun . | . . . . . . . . . . . . . . . . . . . . . . . . . . . . . . . Ballistic Cannon . | . . . . . . . . . . . . . . . . . . . . . . . . . . . . . . . Launcher 7 | . . 1 1 . 1 . 1 . . . . . 1 . . . . . . . . 1 . . . . . 1 . . Special Weapon . | . . . . . . . . . . . . . . . . . . . . . . . . . . . . . . . Impact Weapon 6 | . 2 . 1 . . . . . . . . . . . . 1 . . . . . . . . . 1 . 1 . . Slashing Weapon 16 | . . . 2 1 . 2 . . . . 1 . . . . . . . . . . 1 . . 1 3 . 5 . . Piercing Weapon 21 | . . . . . . . . . . . . 4 . . . 1 . 7 . . . . . 1 2 . . 6 . . Special Melee Weapon . | . . . . . . . . . . . . . . . . . . . . . . . . . . . . . . . Unidentified Prototypes 74 | . 1 . . 2 . 3 . . . . 2 1 3 . . 9 . 3 . . . 5 . 3 3 5 8 24 2 . Parts Lost 11 | . . . 1 5 . . . . . . . . . . . . . 1 . . . . . . 1 . . 2 . 1 Power . | . . . . . . . . . . . . . . . . . . . . . . . . . . . . . . . Propulsion 5 | . . . 1 3 . . . . . . . . . . . . . . . . . . . . 1 . . . . . Utility 6 | . . . . 2 . . . . . . . . . . . . . 1 . . . . . . . . . 2 . 1 Weapon . | . . . . . . . . . . . . . . . . . . . . . . . . . . . . . . . Highest Loss Streak 2 | . . . 1 2 . . . . . . . . . . . . . 1 . . . . . . 1 . . 1 . 1 To Critical Strikes . | . . . . . . . . . . . . . . . . . . . . . . . . . . . . . . . Average Backups 1 | . 1 1 1 . . 1 2 2 2 2 2 2 2 2 2 2 2 2 2 2 2 2 2 2 . 2 2 2 3 3 Power . | . . . . . . . . . . . . . . . . . . . . . . . . . . . . . . . Propulsion . | . . . . . . . . . . . . . . . . . . . . . . . . . . . . . . . Utility . | . . . . . . . . . . . . . . . . . . . . . . . . . . . . . 1 1 Weapon 1 | . . 1 1 . . 1 2 2 2 2 2 2 2 2 2 2 2 2 2 2 2 2 2 2 . . . . . . Tool/Special . | . . . . . . . . . . . . . . . . . . . . . . . . . . . . . . . Unused Backups 5 | . 1 . . . . . . . . . . 1 . . . . . . . . . . . . . . . . . 3 Power . | . . . . . . . . . . . . . . . . . . . . . . . . . . . . . . . Propulsion 1 | . 1 . . . . . . . . . . . . . . . . . . . . . . . . . . . . . Utility 1 | . . . . . . . . . . . . . . . . . . . . . . . . . . . . . . 1 Weapon 1 | . . . . . . . . . . . . 1 . . . . . . . . . . . . . . . . . . Tool/Special 2 | . . . . . . . . . . . . . . . . . . . . . . . . . . . . . . 2 Average Slot Usage (%) 93 | . 91 83 80 83 84 91 88 87 91 89 93 93 95 95 95 94 95 97 100 100 100 95 95 94 94 94 94 98 99 98 Engine 1 | . 13 11 4 3 6 1 . . . . . . . . . . . . . . . . . . . . . . . . Core 1 | . . . . . . 3 5 5 5 5 5 5 4 4 4 4 4 4 4 4 4 4 4 3 . . . . . . Reactor 2 | . . . . . . . . . . . . . . . . . . . . . . . . . 4 4 4 6 7 7 Flight 22 | . 3 11 15 17 13 26 27 26 26 26 26 26 23 23 23 22 22 25 27 27 27 26 26 25 25 25 25 24 24 23 Device 18 | . 1 . . 5 7 13 22 22 21 21 23 25 26 28 28 27 27 23 22 22 22 21 21 22 24 25 25 20 20 19 Processor 15 | . 12 11 10 12 19 12 11 11 10 10 14 15 14 14 14 13 13 16 18 18 18 17 17 16 16 16 16 19 20 19 Hackware 2 | . 11 11 17 6 6 4 . . . . . . . . . . . . . . . . . . . . . . . . Impact Weapon 3 | . 19 24 20 7 3 4 4 5 5 4 5 5 4 4 4 2 4 2 . . . . . . . . . . . . Slashing Weapon 6 | . . . 6 23 20 17 16 16 15 15 15 8 . . . . . . . . . 2 4 4 4 4 4 6 8 7 Piercing Weapon 13 | . . . . . . . . . . . . 6 19 19 19 21 22 23 27 27 27 22 21 20 19 19 19 20 20 19 Peak Build Rating 255 | 5 11 12 24 35 37 60 60 65 67 67 85 119 128 126 126 147 145 154 154 154 154 171 167 179 181 185 199 255 252 250 Average Rating 138 | 3 9 10 16 29 34 52 60 60 66 67 73 94 122 126 126 134 145 149 154 154 154 160 166 170 179 183 186 237 249 245 On Entrance 112 | . 5 10 11 23 35 37 60 60 62 67 67 85 119 126 126 126 145 145 154 154 154 154 165 167 179 181 184 189 250 250 Avg Prop Armor Cover (%) 15 | 16 23 . . 6 7 . . . . . . 7 . . . 6 . . 15 . . . 9 . 1 . . . . . Naked Turns . | . . . . . . . . . . . . . . . . . . . . . . . . . . . . . . . Heaviest Build 81 | 5 11 9 9 31 23 37 34 34 38 42 39 51 60 54 54 57 57 57 44 44 44 49 46 50 54 51 51 81 81 81 Greatest Support 94 | 45 25 9 22 32 32 37 34 40 40 40 45 55 55 55 55 57 57 63 57 57 57 57 57 57 60 57 57 94 92 92 Greatest Overweight (x) 2 | . 1 . . 1 1 1 . . . 1 . 2 1 2 . 2 . 1 2 . . . 2 . . . . 1 1 . Average Overweight (x) . | . . . . . . . . . . . . . . . . . . . . . . . . . . . . . . . Largest Inventory Capacity 3 | 1 1 1 1 1 1 2 2 2 2 2 2 2 2 2 2 2 2 2 2 2 2 2 2 2 2 2 2 3 3 3 Average Capacity 1 | . 1 1 1 1 1 1 2 2 2 2 2 2 2 2 2 2 2 2 2 2 2 2 2 2 2 2 2 2 3 3 Most Carried 3 | 1 1 1 1 1 1 2 2 2 2 2 2 2 2 2 2 2 2 2 2 2 2 2 2 2 2 2 2 3 3 3 Average Carried 1 | . . . 1 . . 1 2 2 2 2 2 2 2 2 2 2 2 1 2 2 2 1 2 2 1 2 2 2 2 3 Final Capacity 3 | 1 1 1 1 1 1 2 2 2 2 2 2 2 2 2 2 2 2 2 2 2 2 2 2 2 2 2 2 3 3 3 Final Carried 3 | 1 1 1 1 1 1 2 2 2 2 2 2 2 2 2 2 2 2 2 2 2 2 2 2 2 2 2 2 3 3 3 Class Distribution -------------------- 35% | Scavenger-Scout 28% | Hacker-Scout 7% | Gladiator 5% | Hacker-Gladiator 5% | Scavenger-Ninja 4% | Commander-Scout 4% | Scout 3% | Scavenger-Sprinter Dominant Class ---------------- Gladiator | -10/Materials Gladiator | -10/Mines Hacker-Gladiator | -10/Subcaves Derelict-Gladiator | -8/Materials Scout | -8/Garrison Scavenger-Scout | -7/Factory Scavenger-Scout | -7/Lower Caves Scavenger-Scout | -7/Lower Caves Scavenger-Scout | -6/Factory Scavenger-Scout | -6/Garrison Hacker-Scout | -6/Factory Hacker-Scout | -6/Garrison Hacker-Scout | -5/Factory Hacker-Scout | -5/Upper Caves Hacker-Scout | -5/Upper Caves Hacker-Scout | -5/Warlord Scavenger-Sprinter | -4/Proximity Caves Hacker-Scout | -4/Factory Hacker-Scout | -4/Extension Commander-Scout | -4/Cetus Commander-Scout | -4/Archives Commander-Scout | -4/Hub_04(d) Hacker-Scout | -4/Garrison Hacker-Scout | -3/Research Hacker-Scout | -3/Quarantine Scavenger-Scout | -2/Research Scavenger-Scout | -2/Testing Scavenger-Scout | -2/Protoforge Scavenger-Scout | -1/Access Scavenger-Scout | -1/Command Resources | -11 -10 -10 -10 -8 -8 -7 -7 -7 -6 -6 -6 -6 -5 -5 -5 -5 -4 -4 -4 -4 -4 -4 -4 -3 -3 -2 -2 -2 -1 -1 ----------- Run | Yrd Mat Min Sub Mat Gar Fac Low Low Fac Gar Fac Gar Fac Upp Upp War Pro Fac Ext Cet Arc Hub Gar Res Qua Res Tes Frg Acc Com Matter Collected 6209 | 268 112 84 115 510 180 467 53 91 54 110 130 89 450 8 . 432 8 264 . . . 205 112 212 219 236 241 1114 171 274 Remotely 10 | . . . . . . . . . . . . . . . . . . . . . . . . . . . . 10 . . Salvage Created 126783 | . 772 120 849 2289 1525 2340 198 378 954 658 1313 2311 6653 1700 504 4611 1689 5553 2993 434 254 3679 4082 6537 7165 9562 2881 25965 13597 15217 Parts 5807 | . 43 1 29 123 73 117 17 25 55 39 77 170 347 68 26 157 73 281 125 18 10 181 175 291 237 422 121 1108 794 604 Haulers Intercepted 48 | . 2 . . 6 . 2 . . 1 . 2 . 1 1 . . . 9 2 . . 5 . 1 2 5 2 . 7 . Recyclers Shooed 3 | . 2 . . 1 . . . . . . . . . . . . . . . . . . . . . . . . . . Parts Field Recycled . | . . . . . . . . . . . . . . . . . . . . . . . . . . . . . . . Retrieved Matter . | . . . . . . . . . . . . . . . . . . . . . . . . . . . . . . . Parts Self-Destructed 219 | . . . 18 . . . 15 18 . . . . . 70 24 . 74 . . . . . . . . . . . . . Prevented 10 | . . . . . . . 1 2 . . . . . 2 2 . 3 . . . . . . . . . . . . . Parts Restored 1 | . . . . . . . . . . . . . . . . . . . . . . . . . . . . 1 . . Broken 1 | . . . . . . . . . . . . . . . . . . . . . . . . . . . . 1 . . Kills | -11 -10 -10 -10 -8 -8 -7 -7 -7 -6 -6 -6 -6 -5 -5 -5 -5 -4 -4 -4 -4 -4 -4 -4 -3 -3 -2 -2 -2 -1 -1 ------- Run | Yrd Mat Min Sub Mat Gar Fac Low Low Fac Gar Fac Gar Fac Upp Upp War Pro Fac Ext Cet Arc Hub Gar Res Qua Res Tes Frg Acc Com Combat Hostiles Destroyed 2013 | . 24 8 18 44 32 45 6 13 17 21 18 69 147 27 10 100 28 67 36 5 4 33 58 91 129 120 28 404 195 216 Melee 1893 | . 13 2 11 34 26 32 2 11 16 13 18 67 117 27 8 85 26 67 36 5 4 33 58 91 128 120 28 404 195 216 AOE 75 | . . 3 . 7 5 9 4 1 . 7 . . 26 . . 13 . . . . . . . . . . . . . . Classes Destroyed 38 | . 9 1 4 3 1 4 . . 2 . . 2 1 . . 1 1 . . . . . 1 2 1 1 1 3 . . Worker 35 | . 4 1 . 1 . 1 . . 7 . 4 . 1 . . . . 5 . . . 6 . . . . . . 5 . Builder 11 | . . 1 . 2 . . . . 1 . . . 1 . . . . 3 2 . . 1 . . . . . . . . Tunneler 11 | . 4 . . 2 . 1 . . 1 . . . 2 . . . . . . . . . . 1 . . . . . . Hauler 48 | . 2 . . 6 . 2 . . 1 . 2 . 1 1 . . . 9 2 . . 5 . 1 2 5 2 . 7 . Recycler 14 | . 2 . . 2 . 2 . . . . . . . . . . . 2 . . . 5 . 1 . . . . . . Carrier 12 | . . . . . . . . . . . . . . . . . . . . . . . 1 1 1 . . 4 1 4 Mechanic 14 | . . . . 1 . . . . . . . . 1 . . 3 . . . . . . . . . 2 . 3 1 3 Operator 19 | . 1 . . 2 . 1 . . . . 3 . 1 . . . . 3 1 . . 1 . . 1 . 2 . 3 . Drone 22 | . . . . . . . . . . . . . . . . . 2 . . . . . . . . . . 19 1 . Turret 2 | . . . 2 . . . . . . . . . . . . . . . . . . . . . . . . . . . Watcher 77 | . 2 . . 5 . 6 . . 1 . 3 2 5 . . . . 5 2 2 . 2 1 5 2 4 3 7 14 6 Swarmer 190 | . 8 6 7 7 3 7 4 3 4 7 2 22 1 11 . 5 5 13 6 . . . 8 13 3 7 . 8 18 12 Cutter 27 | . . . . . . 1 . . . . . 4 2 . . . . . . . . . . . . . . . 9 11 Saboteur 52 | . . . . . . . . . . . . 3 6 . . 2 . . . . . . . 4 5 . . 18 3 11 Grunt 676 | . 15 2 . 21 20 21 . 1 6 5 6 16 71 9 4 40 16 23 10 . . 8 21 23 54 41 12 127 48 56 Brawler 92 | . . . . . . 2 . 2 1 1 1 2 10 1 1 12 2 4 2 . . . 8 . 3 3 1 23 8 5 Duelist 71 | . . . . . . 1 . 2 1 1 . 2 11 1 . 6 1 2 . . . . . 2 10 2 . 17 3 9 Protector 71 | . . . . . . . . . . . . . 5 . . 7 . . . . . 2 . 2 11 5 1 24 7 7 Researcher 13 | . . . . . . . . . . . . . . . . . . . . . . . . . 1 . 2 10 . . Sentry 217 | . . . 1 12 8 11 . 1 2 1 5 6 16 2 1 . 1 10 11 . 4 6 6 34 11 17 . 20 28 3 Demolisher 6 | . . . . . . . . . 1 . . . . . . . . . 1 . . . . . . 2 . . 2 . Specialist 31 | . . . . . 1 . . . . . . 1 . . . 1 . . . . . . . . 3 . 3 3 8 11 Hunter 149 | . . . . 3 . 1 . . 1 2 3 5 13 . 4 3 . 2 3 . . 6 4 1 7 15 2 25 17 32 Programmer 168 | . . . . . . 1 2 . . 4 . 4 10 3 . 12 . 8 1 . . 2 9 8 12 12 3 44 11 22 Heavy 14 | . . . . 1 . . . . . . . . 2 . . . . 3 . . . 2 . . . . . . 5 1 Q-Series 3 | . . . . . . . . . . . . . . . . . . . . . . . . . . . . 3 . . Behemoth 30 | . . . . . . . . . 1 . 1 3 . . . 2 1 2 2 . . 1 2 3 . 3 . 1 7 1 Cetus Guard 5 | . . . . . . . . . . . . . . . . . . . . 5 . . . . . . . . . . Enhanced Grunt 2 | . . . . . . . . . . . . . . . . . . . . . . 2 . . . . . . . . Lightning 9 | . . . . . . . . . . . . . . . . . . . . . . 6 . . 3 . . . . . Hotshot 20 | . . . . . . . . . . . . . . . . . . . . . . . . . . . . 20 . . Decapitator 12 | . . . . . . . . . . . . . . . . . . . . . . . . . . . . 12 . . Immortal 3 | . . . . . . . . . . . . . . . . . . . . . . . . . . . . 3 . . Overlord 1 | . . . . . . . . . . . . . . . . . . . . . . . . . . . . 1 . . Investigator 5 | . . . . . . . . . . . . . . . . . . . . . . . . 1 1 . . 2 . 1 Striker 40 | . . . . . . . . . . . . 1 . . . 5 . . . . . . . . 3 8 2 6 8 7 Executioner 63 | . . . . . . . . . . . . . . . . 5 . . . . . . . . 3 4 . 11 12 28 Alpha 7 6 | . . . . . . . . . . . . . . . . . . . . . . . . . 1 . 1 4 . . Fortress 1 | . . . . . . . . . . . . . . . . . . . . . . . . . . . 1 . . . V-Series 14 | . . . . . . . . . . . . . . . . . . . . . . . . . . . . 14 . . Protovariant X 2 | . . . . . . . . . . . . . . . . . . . . . . . . . . . 2 . . . Artisan 1 | . . . 1 . . . . . . . . . . . . . . . . . . . . . . . . . . . Cobbler 1 | . . . 1 . . . . . . . . . . . . . . . . . . . . . . . . . . . Subdweller 11 | . 1 . 10 . . . . . . . . . . . . . . . . . . . . . . . . . . . Tinkerer 1 | . . . . . . . . . . . . . . . . . . . . . . . . . . . . 1 . . Wasp 3 | . . . . . . . . 3 . . . . . . . . . . . . . . . . . . . . . . Thug 6 | . . . . . . . . 1 . . . . . . . . . . . . . 5 . . . . . . . . Butcher 2 | . . . . . . . . . . . . . . . . . . . . . . 2 . . . . . . . . Guerrilla 1 | . . . . . . . . . . . . . . . . . . . . . . 1 . . . . . . . . Knight 1 | . . . . . . . . . . . . . . . . . . . . . . . . . . 1 . . . . Revision 1 | . . . . . . . . . . . . . . . . . . . . . . . . 1 . . . . . . Best Kill Streak 60 | . 7 4 5 9 7 12 4 6 27 6 14 17 26 14 5 21 10 20 21 4 4 27 19 35 29 37 12 60 27 56 Combat Bots Only 58 | . 6 3 3 6 7 5 4 6 8 6 7 16 26 14 5 14 10 13 8 3 4 15 18 19 27 37 9 58 26 49 Max Kills in Single Turn 7 | . 1 1 1 4 3 4 3 2 5 3 1 3 7 2 1 4 3 2 2 2 1 4 3 2 3 4 2 4 3 3 Gunslinging . | . . . . . . . . . . . . . . . . . . . . . . . . . . . . . . . Exploded 6 | . . 1 . 4 3 4 3 1 . 3 . . 6 . . 4 . . . . . . . . . . . . . . Melee 4 | . 1 1 1 1 1 2 1 1 2 1 1 3 2 2 1 3 3 2 2 2 1 2 3 2 3 4 2 4 3 3 Uniques/NPCs Destroyed 1 | . . . . . . . . . . . . . . . . . . . . . . . . . . . . 1 . . Superfortress (-2/Protoforge) Combat | -11 -10 -10 -10 -8 -8 -7 -7 -7 -6 -6 -6 -6 -5 -5 -5 -5 -4 -4 -4 -4 -4 -4 -4 -3 -3 -2 -2 -2 -1 -1 -------- Run | Yrd Mat Min Sub Mat Gar Fac Low Low Fac Gar Fac Gar Fac Upp Upp War Pro Fac Ext Cet Arc Hub Gar Res Qua Res Tes Frg Acc Com Hostile Shots Fired 5986 | . 112 13 82 135 90 305 9 15 56 78 88 181 410 57 40 263 55 170 84 27 18 84 170 231 402 387 76 1142 513 693 Missed 3194 | . 47 4 34 55 43 167 4 8 35 38 50 103 216 28 20 147 32 96 49 13 9 52 96 123 263 205 35 547 316 359 Intercepted 1 | . . . . . . . . . . . . . . . . . . . . . . . . . . . . 1 . . Deflected 44 | . . . . . . . . . . . . . . . . . . . . . . . . . . . . 36 . 8 Hits 2792 | . 65 9 48 80 47 138 5 7 21 40 38 78 194 29 20 116 23 74 35 14 9 32 74 108 139 182 41 595 197 334 Melee 94 | . . . . . . 9 . 2 . 3 1 3 5 . 1 11 . 3 1 . . . 3 . 2 1 . 26 3 20 Projectile 2698 | . 65 9 48 80 47 129 5 5 21 37 37 75 189 29 19 105 23 71 34 14 9 32 71 108 137 181 41 569 194 314 AOE 17 | . . . 1 . . . . . . . . . . . . 1 . . . . . . . . 2 . . 5 6 2 Critical Strikes 159 | . 1 . . 4 2 3 . . 2 2 3 1 12 . 1 8 2 3 1 2 1 3 6 3 11 5 4 38 10 31 Part Disruptions 17 | . . . . . . . . . . . . . 1 . . 6 . . . . . 1 . . 4 . . 5 . . Damage Taken 51821 | . 805 82 727 1632 704 1407 122 147 409 622 620 1181 3795 455 343 3220 322 1324 646 311 178 1119 1428 1876 2731 4040 1007 10028 3883 6657 Core 42082 | . 660 70 613 1232 574 1128 101 114 319 416 483 939 3034 389 268 2657 267 1082 525 258 143 907 1155 1489 2232 3250 832 8215 3187 5543 Absorbed by Shields 1241 | . . . . . . . . . . 30 . . . . . . . . 5 62 11 . . . . . . 1133 . . Redirected to Core 32968 | . 467 37 397 686 442 908 74 114 270 386 435 827 2647 223 251 1982 176 826 426 182 119 777 979 1331 1794 2827 641 6389 2448 3907 Ignored by Resistances 11560 | . . . . . . 166 11 10 57 66 84 191 581 67 63 456 97 288 159 96 51 148 302 507 480 945 194 3249 1374 1918 Regen/Repaired (Parts) 10 | . . . . 10 . . . . . . . . . . . . . . . . . . . . . . . . . . Core Remaining (%) 88 | 100 . . 66 . 100 . . 100 . . . 98 . . . . 100 . . . . . 89 . 100 . . 47 . . Volleys Fired 114 | 3 10 5 1 14 12 13 2 1 1 5 . . 14 . . 10 . 2 . . . 5 . 9 7 . . . . . Largest 2 | 2 2 1 1 1 1 1 1 1 1 1 . . 1 . . 1 . 1 . . . 1 . 1 1 . . . . . Hottest 90 | 80 80 40 40 40 33 90 39 39 39 39 . . 90 . . 90 . 49 . . . 90 . 90 90 . . . . . Shots Fired 126 | 6 20 5 2 13 12 13 2 1 1 5 . . 14 . . 10 . 2 . . . 5 . 9 6 . . . . . Gun 28 | 6 20 1 1 . . . . . . . . . . . . . . . . . . . . . . . . . . . Cannon 21 | . . . . . . 4 . . . . . . 1 . . 1 . . . . . 2 . 9 4 . . . . . Launcher 77 | . . 4 1 13 12 9 2 1 1 5 . . 13 . . 9 . 2 . . . 3 . . 2 . . . . . Special . | . . . . . . . . . . . . . . . . . . . . . . . . . . . . . . . Kinetic 14 | . . . 1 13 . . . . . . . . . . . . . . . . . . . . . . . . . . Thermal 48 | 6 20 1 1 . . 4 . . . . . . 1 . . 1 . . . . . 1 . 9 4 . . . . . Explosive 63 | . . 4 . . 12 9 2 1 1 5 . . 13 . . 9 . 2 . . . 3 . . 2 . . . . . Electromagnetic 1 | . . . . . . . . . . . . . . . . . . . . . . 1 . . . . . . . . Robot Hit Streak 11 | 6 9 1 4 9 11 . . . . 1 . . 3 . . 6 . . . . . . . 8 . . . . . . Robot Miss Streak 3 | . 2 2 . . . 2 . . . . . . 3 . . . . . . . . . . 2 . . . . . . Penetration Max . | . . . . . . . . . . . . . . . . . . . . . . . . . . . . . . . Secondary Targets . | . . . . . . . . . . . . . . . . . . . . . . . . . . . . . . . Autonomous 1 | . . . 1 . . . . . . . . . . . . . . . . . . . . . . . . . . . Shots Hit Robots 5078 | 6 86 9 69 153 108 145 6 21 62 57 70 171 326 51 22 236 54 199 95 32 10 110 124 203 289 315 96 1010 481 462 Core Hits 2542 | . 16 5 16 56 43 66 7 11 27 34 28 68 223 32 8 134 30 104 45 10 5 72 65 107 147 141 50 509 250 233 Critical Kills 15 | . 7 . 2 2 . . . . . . . 1 2 . . 1 . . . . . . . . . . . . . . Critical Parts Destroyed 62 | . 12 6 13 6 1 4 . . 1 3 . 4 5 1 . 3 1 1 . . . . . . . . . 1 . . Critical Strikes 1022 | . 19 6 23 18 15 23 . 2 10 8 8 33 44 12 1 35 14 25 12 7 . 16 14 20 30 27 12 235 179 174 Smash 84 | . 19 6 22 8 1 4 . . 1 3 . 5 7 1 . 4 1 1 . . . . . . . . . 1 . . Sever 219 | . . . 1 10 14 19 . 2 9 5 8 21 . . . . . . . . . 5 11 9 11 13 9 51 6 15 Impale 719 | . . . . . . . . . . . . 7 37 11 1 31 13 24 12 7 . 11 3 11 19 14 3 183 173 159 Melee Attacks 6652 | . 105 8 91 182 133 224 15 29 80 102 104 229 433 72 29 256 75 272 123 39 12 140 206 271 383 410 128 1256 654 591 Impact 508 | . 105 8 66 40 10 40 3 5 12 21 15 43 75 9 7 20 10 18 . . . . . . . . . 1 . . Slashing 2317 | . . . 25 142 123 184 12 24 68 81 89 150 . . . . . . . . . 30 95 113 153 159 56 581 108 124 Piercing 3827 | . . . . . . . . . . . . 36 358 63 22 236 65 254 123 39 12 110 111 158 230 251 72 674 546 467 Sneak Attacks 431 | . 10 3 2 21 9 13 . 1 14 4 8 32 11 1 . . 5 43 10 . . 25 20 15 8 22 11 72 50 21 Combat Hostiles 121 | . 2 1 . 5 3 4 . . . . . 7 5 . . . 3 6 2 . . 10 2 10 3 9 6 8 26 9 Follow-up Attacks 2176 | . 8 . 18 44 31 54 1 6 25 24 25 66 140 17 8 123 28 86 48 22 5 55 56 98 151 175 46 409 203 204 Martial Strikes 308 | . . . . . . . . . . . . . . . . . . . . . . . . . . . . 228 64 16 Damage Inflicted 447208 | 68 3431 775 2970 7631 5848 8189 658 1399 4649 4419 5092 12829 25834 3832 1486 17671 4104 16799 7917 2377 763 11937 12970 19599 25829 30318 10008 104232 48571 45003 Guns 268 | 68 166 12 22 . . . . . . . . . . . . . . . . . . . . . . . . . . . Cannons 80 | . . . . . . . . . . . . . . . . . . . . . . . . 80 . . . . . . Explosions 13658 | . . 251 . 973 523 622 270 231 383 1002 . . 4877 . . 2615 . 159 . . . 1752 . . . . . . . . Melee 433202 | . 3265 512 2948 6658 5325 7567 388 1168 4266 3417 5092 12829 20957 3832 1486 15056 4104 16640 7917 2377 763 10185 12970 19519 25829 30318 10008 104232 48571 45003 Ramming . | . . . . . . . . . . . . . . . . . . . . . . . . . . . . . . . Kinetic 973 | . . . . 973 . . . . . . . . . . . . . . . . . . . . . . . . . . Thermal 1695 | 68 166 12 22 . . . . . 243 . . . 1104 . . . . . . . . . . 80 . . . . . . Explosive 9265 | . . 251 . . 523 622 270 231 140 1002 . . 3556 . . 2615 . 55 . . . . . . . . . . . . Electromagnetic 2073 | . . . . . . . . . . . . . 217 . . . . 104 . . . 1752 . . . . . . . . Impact 16982 | . 3265 512 2392 1534 109 1097 . 109 442 668 362 1256 2409 212 328 1081 485 500 . . . . . . . . . 221 . . Slashing 174352 | . . . 556 5124 5216 6470 388 1059 3824 2749 4730 9828 . . . . . . . . . 3186 8239 12126 15212 17223 6302 55405 7067 9648 Piercing 241868 | . . . . . . . . . . . . 1745 18548 3620 1158 13975 3619 16140 7917 2377 763 6999 4731 7393 10617 13095 3706 48606 41504 35355 Highest Corruption 35 | . . . . 1 1 3 3 3 . 1 1 2 7 8 8 9 5 . . . . 6 8 3 5 4 13 35 2 16 Average Corruption 7 | . . . . 1 1 3 3 3 . 1 1 1 2 7 8 3 5 . . . . 2 7 2 3 3 8 22 1 11 Corruption Purged . | . . . . . . . . . . . . . . . . . . . . . . . . . . . . . . . Corruption Blocked . | . . . . . . . . . . . . . . . . . . . . . . . . . . . . . . . Effects 415 | . . . . 11 4 20 2 4 . . 1 9 12 10 6 14 6 . . . . 3 36 9 28 12 11 150 10 57 Message Errors 100 | . . . . 4 2 6 . . . . . 3 1 5 2 6 1 . . . . . 11 4 4 4 4 33 3 7 Matter Fused 89 | . . . . 1 1 7 1 1 . . . 1 3 1 . 1 2 . . . . . 11 3 6 2 3 29 2 14 Heat Flow Errors 50 | . . . . 2 . 3 1 . . . . 1 3 . 1 2 . . . . . . 3 . 7 2 2 20 . 3 Energy Discharges 48 | . . . . 2 1 2 . . . . . 1 2 1 . 3 1 . . . . . 5 1 2 2 . 16 2 7 Parts Rejected 5 | . . . . . . . . . . . . 2 . . . . . . . . . . . . . 1 . 1 . 1 Parts Fused 11 | . . . . 1 . . . . . . . . . . . . 1 . . . . . . . 1 . . 4 1 3 Data Loss (minor) 48 | . . . . 1 . 1 . . . . . 1 2 2 3 . . . . . . 2 2 1 5 1 2 19 1 5 Data Loss (major) 18 | . . . . . . . . 1 . . . . 1 1 . 1 1 . . . . 1 1 . 2 . . 5 1 3 Alerts 11 | . . . . . . 1 . 2 . . 1 . . . . 1 . . . . . . 3 . . . . 1 . 2 Misdirections 34 | . . . . . . . . . . . . . . . . . . . . . . . . . . . . 22 . 12 Weapon Failures 1 | . . . . . . . . . . . . . . . . . . . . . . . . . 1 . . . . . Overload Shots 11 | . . . . . . 2 . . . . . . 1 . . 1 . . . . . 1 . 2 4 . . . . . Effects 1 | . . . . . . 1 . . . . . . . . . . . . . . . . . . . . . . . . Energy Bleed 1 | . . . . . . 1 . . . . . . . . . . . . . . . . . . . . . . . . Overflow Damage 59442 | . 1044 449 735 965 298 806 75 141 514 410 587 1432 2898 836 110 1329 692 2634 1383 189 . 1698 1328 2110 3644 2658 1072 14138 6939 8328 Projectiles . | . . . . . . . . . . . . . . . . . . . . . . . . . . . . . . . Explosions 421 | . . 7 . . 54 . . . 2 39 . . 178 . . 108 . . . . . 33 . . . . . . . . Melee 59021 | . 1044 442 735 965 244 806 75 141 512 371 587 1432 2720 836 110 1221 692 2634 1383 189 . 1665 1328 2110 3644 2658 1072 14138 6939 8328 Knockbacks 64 | . 19 1 8 3 1 6 . 1 . . 1 1 12 1 2 4 3 1 . . . . . . . . . . . . Impact 59 | . 18 1 7 3 1 5 . 1 . . 1 1 10 1 2 4 3 1 . . . . . . . . . . . . Kinetic . | . . . . . . . . . . . . . . . . . . . . . . . . . . . . . . . Secondary 5 | . 1 . 1 . . 1 . . . . . . 2 . . . . . . . . . . . . . . . . . Self-Inflicted Damage 1177 | . . 4 . 24 17 20 55 . . 82 . . 128 . . . . 6 . . . 460 139 . 41 . . . . 201 Shots 21 | . . 1 . 1 1 1 1 . . 3 . . 3 . . . . 1 . . . 6 1 . 1 . . . . 1 Rammed . | . . . . . . . . . . . . . . . . . . . . . . . . . . . . . . . Targets Rammed . | . . . . . . . . . . . . . . . . . . . . . . . . . . . . . . . Kicked . | . . . . . . . . . . . . . . . . . . . . . . . . . . . . . . . Crushed . | . . . . . . . . . . . . . . . . . . . . . . . . . . . . . . . Highest Temperature 553 | . 14 . . 147 . 267 219 . 253 . . 205 190 . 109 217 . . 272 . . . 221 7 272 243 162 553 57 240 Average Temperature 65 | . 8 . . 66 . 121 106 . 148 . . 130 77 . 64 93 . . 153 . . . 64 4 39 116 98 117 16 53 Received Heat Transfer 8926 | . 213 12 120 441 333 468 . 27 365 51 144 195 1027 108 63 387 90 102 385 66 36 66 250 409 388 567 81 1720 335 477 Effects 3 | . . . . . . . . . . . . . . . . . . . . . . . 2 . . . . 1 . . Shutdowns 1 | . . . . . . . . . . . . . . . . . . . . . . . . . . . . 1 . . Interference 2 | . . . . . . . . . . . . . . . . . . . . . . . 2 . . . . . . . Siege Activations . | . . . . . . . . . . . . . . . . . . . . . . . . . . . . . . . Martial Activations . | . . . . . . . . . . . . . . . . . . . . . . . . . . . . . . . Shielding Activations . | . . . . . . . . . . . . . . . . . . . . . . . . . . . . . . . Robots Disrupted . | . . . . . . . . . . . . . . . . . . . . . . . . . . . . . . . Combat Hostiles . | . . . . . . . . . . . . . . . . . . . . . . . . . . . . . . . Robots Corrupted 61 | . 14 3 10 5 1 5 . 1 2 1 . 2 4 . 2 2 2 1 . . . 6 . . . . . . . . Combat Hostiles 45 | . 11 3 9 3 1 4 . 1 . 1 . 2 4 . 2 2 2 . . . . . . . . . . . . . Parts Fried 113 | . 30 6 12 8 . 7 . 2 1 3 . 5 8 . 4 2 . 4 . . . 19 . . . . . . 2 . Impact Corruptions 192 | . 46 14 29 19 2 10 . 3 4 7 2 14 16 2 3 11 4 5 . . . . . . . . . 1 . . Robots Melted . | . . . . . . . . . . . . . . . . . . . . . . . . . . . . . . . Combat Hostiles . | . . . . . . . . . . . . . . . . . . . . . . . . . . . . . . . Parts Melted 146 | . . . . . . . . . . . . . . . . 14 . 1 . . . . . 2 125 1 1 . 1 1 Heat Transferred 1698 | 150 375 25 75 . . . . . 200 . . . 725 . . . . . . . . . . 148 . . . . . . Parts Sabotaged 9 | . . . . . . . . . . . . . . . . . . . . . . . . . . . . 3 . 6 Parts Stolen . | . . . . . . . . . . . . . . . . . . . . . . . . . . . . . . . Parts Stripped . | . . . . . . . . . . . . . . . . . . . . . . . . . . . . . . . Power Chain Reactions 2 | . . . . . . . . . . . . . . . . . . . . . . 2 . . . . . . . . Alert | -11 -10 -10 -10 -8 -8 -7 -7 -7 -6 -6 -6 -6 -5 -5 -5 -5 -4 -4 -4 -4 -4 -4 -4 -3 -3 -2 -2 -2 -1 -1 ------- Run | Yrd Mat Min Sub Mat Gar Fac Low Low Fac Gar Fac Gar Fac Upp Upp War Pro Fac Ext Cet Arc Hub Gar Res Qua Res Tes Frg Acc Com Maximum Alert Level 5 | . 2 1 . 4 5 5 . . 5 5 4 5 5 . . . . 5 5 4 2 5 5 5 5 5 5 5 5 5 Low Security (%) 5 | 100 63 60 . 23 . . . . . . . . . . . . . . . . . 1 . . . . . . . . Level 1 3 | . 24 39 . 9 . . . . . . . . . . . . . 21 . . . 11 . . . . . . . . Level 2 3 | . 12 . . 21 . . . . . . . . . . . . . 23 . . 100 23 . . . . . . . . Level 3 7 | . . . . 32 28 . . . 19 . 33 6 . . . . . 31 29 80 . 13 . . . . . . . . Level 4 11 | . . . . 12 32 25 . . 65 40 66 29 12 . . . . 17 69 19 . 15 . . . . . . . . Level 5 25 | . . . . . 38 6 . . 4 59 . 64 13 . . . . 5 . . . 20 100 6 6 16 57 62 1 4 High Security 42 | . . . . . . 67 . . 9 . . . 73 . . . . . . . . 14 . 93 93 83 42 37 98 95 Max Security . | . . . . . . . . . . . . . . . . . . . . . . . . . . . . . . . Sterilizations 2 | . . . . . . . . . . . . . 1 . . . . . . . . . . . 1 . . . . . Peak Influence 15162 | . 534 249 . 1274 2188 3202 . . 1651 2169 1440 2854 5622 . . . . 1643 1604 1124 575 2606 3901 5104 5780 6550 4033 11603 12913 15162 Initial 8264 | . . 138 . 73 822 1148 . . 1073 1155 1138 1002 1498 . . . . 270 805 893 425 186 1825 2193 2871 3251 3684 2268 6961 8264 Average 3937 | . 166 189 . 611 1478 2011 . . 1333 1692 1159 2044 3390 . . . . 803 1186 1035 547 1192 3412 3741 4523 4825 3736 5959 10068 11277 Influence Increases 62824 | . 992 231 280 1741 1386 2264 150 190 678 1014 1042 1852 4834 630 259 2199 590 2339 1289 321 160 2742 2076 2931 3269 3399 899 10117 5962 6988 Destroy 0b10 Robot/C 39420 | . 460 160 200 880 660 900 120 180 340 440 420 1380 3000 540 200 1980 520 1340 800 140 80 620 1180 1800 2420 2300 580 7700 3760 4320 Destroy 0b10 Robot/NC 1740 | . 75 15 . 105 25 65 . . 55 10 90 20 90 15 . 55 20 135 35 10 . 110 20 50 80 80 40 250 190 100 Destroy Leader 5348 | . 118 30 20 272 30 176 30 10 54 50 140 50 414 30 30 . 50 318 94 . . 180 70 282 258 428 70 884 692 568 Allied During Kill 1690 | . . . . . 38 4 . . . 24 17 9 201 . 29 119 . . 274 150 80 560 . . . . . . . 185 Successful Hack 497 | . 23 . . 9 14 34 . . 24 14 52 10 27 . . . . 24 69 . . 23 44 . 6 24 23 61 . 16 Select Force Hacks 190 | . 60 . . 110 . . . . . . 20 . . . . . . . . . . . . . . . . . . . Disable Machine 2235 | . . . . 45 45 420 . . 150 45 105 30 285 . . . . 90 15 15 . 375 75 60 120 15 30 255 60 . Anti-Garrison Action 4450 | . . . . . 350 150 . . . 300 150 300 300 . . . . 300 . . . . 400 650 150 450 150 150 600 50 Destroy Structure 2309 | . 1 26 . 110 119 140 . . 25 101 48 23 382 . . . . 42 2 6 . 844 122 14 70 27 6 12 30 159 Partial Spotted 705 | . . . . 75 30 15 . . 15 . . . 105 . . . . 45 . . . 30 15 75 45 . . 60 120 75 Lose Combat Pursuer 4140 | . 255 . 60 135 75 360 . . 15 30 . 30 30 45 . 45 . 45 . . . . 150 . 120 75 . 645 510 1515 Miscellaneous 100 | . . . . . . . . . . . . . . . . . . . . . . . . . . . . 100 . . Influence Decreases 47662 | . 638 376 347 617 464 1250 1296 541 732 496 1779 430 2066 2279 846 3802 1943 1126 1336 853 689 669 783 1728 2593 2629 3416 2547 4652 4739 Entered New Map 39270 | . . 216 109 69 444 1040 1186 391 632 496 1031 430 1356 2081 756 3386 1783 160 838 703 639 349 783 1708 2233 2529 2866 1765 4642 4649 Time Decay 4792 | . 338 160 228 498 . 190 110 150 100 . 278 . 180 198 90 326 160 356 198 130 50 140 . 20 50 100 100 612 10 20 Lost Part 110 | . . . 10 50 . . . . . . . . . . . . . 10 . . . . . . 10 . . 20 . 10 Lost Ally 490 | . . . . . 20 20 . . . . 20 . 80 . . 90 . . . 20 . 180 . . . . . . . 60 Purge Threat 3000 | . 300 . . . . . . . . . 450 . 450 . . . . 600 300 . . . . . 300 . 450 150 . . Squads Dispatched 350 | . 7 . . 13 . 37 . . 1 . 9 . 36 . . . . 17 3 . . 6 . 1 36 1 11 73 58 41 Investigation 27 | . 7 . . 6 . 1 . . . . 2 . 2 . . . . 2 1 . . 2 . 1 . 1 . 1 . 1 Extermination 14 | . . . . . . 1 . . . . 3 . 1 . . . . 2 . . . 1 . . . . 1 5 . . Reinforcement 38 | . . . . 3 . . . . 1 . 1 . 4 . . . . 8 1 . . 3 . . 1 . 3 3 6 4 Assault 264 | . . . . . . 35 . . . . 3 . 27 . . . . 5 1 . . . . . 35 . 6 64 52 36 Garrison 7 | . . . . 4 . . . . . . . . 2 . . . . . . . . . . . . . 1 . . . Intercept . | . . . . . . . . . . . . . . . . . . . . . . . . . . . . . . . Searches Triggered . | . . . . . . . . . . . . . . . . . . . . . . . . . . . . . . . Construction Impeded 2 | . . . . . . . . . . . . . 1 . . . . . . . . 1 . . . . . . . . Haulers Reinforced 4 | . . . . . . . . . 1 . 1 . . . . . . 1 . . . . . . 1 . . . . . Active Scanning Responses . | . . . . . . . . . . . . . . . . . . . . . . . . . . . . . . . Cargo Convoy Interrupts . | . . . . . . . . . . . . . . . . . . . . . . . . . . . . . . . Stealth | -11 -10 -10 -10 -8 -8 -7 -7 -7 -6 -6 -6 -6 -5 -5 -5 -5 -4 -4 -4 -4 -4 -4 -4 -3 -3 -2 -2 -2 -1 -1 --------- Run | Yrd Mat Min Sub Mat Gar Fac Low Low Fac Gar Fac Gar Fac Upp Upp War Pro Fac Ext Cet Arc Hub Gar Res Qua Res Tes Frg Acc Com Distress Signals 44 | . 1 . . 1 . . . . . . 2 . 3 . . . . . 4 2 . 6 . 4 1 6 1 4 8 1 Communications Jammed . | . . . . . . . . . . . . . . . . . . . . . . . . . . . . . . . Distress Signals . | . . . . . . . . . . . . . . . . . . . . . . . . . . . . . . . Times Spotted 2540 | . 48 6 26 54 36 80 6 11 19 23 26 63 174 32 10 162 26 72 42 10 4 34 56 90 167 173 50 475 240 325 Peak Tracking Total 41 | . 5 3 6 5 5 14 4 5 4 8 5 8 15 9 3 20 9 8 7 5 3 8 13 9 23 17 16 15 14 41 Tactical Retreats 96 | . 13 . 2 8 4 6 . . 1 2 . 2 2 2 . 2 . 2 . . . . 2 . 6 2 . 16 13 11 Traps | -11 -10 -10 -10 -8 -8 -7 -7 -7 -6 -6 -6 -6 -5 -5 -5 -5 -4 -4 -4 -4 -4 -4 -4 -3 -3 -2 -2 -2 -1 -1 ------- Run | Yrd Mat Min Sub Mat Gar Fac Low Low Fac Gar Fac Gar Fac Upp Upp War Pro Fac Ext Cet Arc Hub Gar Res Qua Res Tes Frg Acc Com Traps Triggered 74 | . 2 . 2 . 7 4 . . 1 5 2 3 5 . . 2 . 4 . . . 1 10 1 1 . . 19 3 2 Indirectly . | . . . . . . . . . . . . . . . . . . . . . . . . . . . . . . . Trap Hack Attempts . | . . . . . . . . . . . . . . . . . . . . . . . . . . . . . . . Triggered . | . . . . . . . . . . . . . . . . . . . . . . . . . . . . . . . Disarmed . | . . . . . . . . . . . . . . . . . . . . . . . . . . . . . . . Reprogrammed . | . . . . . . . . . . . . . . . . . . . . . . . . . . . . . . . Reused . | . . . . . . . . . . . . . . . . . . . . . . . . . . . . . . . Traps Extracted . | . . . . . . . . . . . . . . . . . . . . . . . . . . . . . . . Installed . | . . . . . . . . . . . . . . . . . . . . . . . . . . . . . . . Triggered . | . . . . . . . . . . . . . . . . . . . . . . . . . . . . . . . Machines | -11 -10 -10 -10 -8 -8 -7 -7 -7 -6 -6 -6 -6 -5 -5 -5 -5 -4 -4 -4 -4 -4 -4 -4 -3 -3 -2 -2 -2 -1 -1 ---------- Run | Yrd Mat Min Sub Mat Gar Fac Low Low Fac Gar Fac Gar Fac Upp Upp War Pro Fac Ext Cet Arc Hub Gar Res Qua Res Tes Frg Acc Com Machines Disabled 208 | . . . . 3 10 29 . . 10 8 8 8 27 1 . 3 . 8 1 1 . 25 13 7 10 4 3 19 8 2 Max in Single Turn 12 | . . . . 1 1 4 . . 8 1 1 1 5 1 . 2 . 2 1 1 . 12 2 1 2 1 1 1 1 2 Garrison Access 23 | . . . . . . 1 . . . . 1 . 4 . . . . 2 . . . . . 4 1 4 1 1 4 . Garrison Relay 19 | . . . . . 4 . . . . 5 . 6 . . . . . . . . . . 4 . . . . . . . Phase Generator 4 | . . . . . 1 . . . . . . 1 . . . . . . . . . . 1 . . . . . . 1 Network Hub 4 | . . . . . . . . . . . . . . . . . . . . . . 4 . . . . . . . . Machines Repaired . | . . . . . . . . . . . . . . . . . . . . . . . . . . . . . . . Machines Dismantled . | . . . . . . . . . . . . . . . . . . . . . . . . . . . . . . . Machines Sabotaged 1 | . . . . 1 . . . . . . . . . . . . . . . . . . . . . . . . . . Overloaded Fab Kills . | . . . . . . . . . . . . . . . . . . . . . . . . . . . . . . . Hacking | -11 -10 -10 -10 -8 -8 -7 -7 -7 -6 -6 -6 -6 -5 -5 -5 -5 -4 -4 -4 -4 -4 -4 -4 -3 -3 -2 -2 -2 -1 -1 --------- Run | Yrd Mat Min Sub Mat Gar Fac Low Low Fac Gar Fac Gar Fac Upp Upp War Pro Fac Ext Cet Arc Hub Gar Res Qua Res Tes Frg Acc Com Machines Accessed 143 | . 11 . 2 10 4 4 1 1 1 2 21 1 11 2 . 3 . 22 19 1 . 7 2 1 3 1 2 10 . 1 Terminals 94 | . 8 . . 5 4 1 1 . . 2 12 1 5 . . . . 14 17 1 . 6 2 . 3 1 1 9 . 1 Fabricators 3 | . . . . . . 1 . . . . 1 . 1 . . . . . . . . . . . . . . . . . Repair Stations 2 | . 1 . . 1 . . . . . . . . . . . . . . . . . . . . . . . . . . Recycling Units 19 | . 2 . . 2 . . . . . . 4 . 3 . . . . 6 2 . . . . . . . . . . . Scanalyzers 7 | . . . . 1 . 1 . . . . 2 . 1 . . . . 1 . . . . . . . . 1 . . . Garrison Access 10 | . . . . 1 . 1 . . 1 . 2 . 1 . . . . 1 . . . 1 . 1 . . . 1 . . Total Hacks 360 | . 29 . 4 21 10 8 1 1 1 5 50 1 27 5 . 8 . 48 37 3 . 15 12 3 11 3 14 34 . 9 Successful 186 | . 14 . 4 15 3 4 1 1 1 1 23 1 13 5 . 8 . 25 21 . . 5 4 1 6 1 7 18 . 4 Failed 172 | . 15 . . 5 7 4 . . . 4 27 . 13 . . . . 23 16 3 . 10 8 2 5 2 7 16 . 5 Catastrophic 33 | . 2 . . 1 . . . . . 1 6 . 2 . . . . 6 4 . . 4 . . . 2 1 3 . 1 Database Lockouts 2 | . . . . 1 . . . . . . . . 1 . . . . . . . . . . . . . . . . . Manual 122 | . 18 . . 9 . . . . . . 19 . 11 . . . . 17 13 1 . 5 9 2 3 1 6 8 . . Terminals 263 | . 23 . . 11 10 2 1 . . 5 33 1 15 . . . . 37 35 3 . 14 12 . 11 3 9 29 . 9 Fabricators 7 | . . . . . . 2 . . . . 2 . 3 . . . . . . . . . . . . . . . . . Repair Stations 4 | . 3 . . 1 . . . . . . . . . . . . . . . . . . . . . . . . . . Recycling Units 31 | . 3 . . 5 . . . . . . 7 . 5 . . . . 9 2 . . . . . . . . . . . Scanalyzers 17 | . . . . 2 . 2 . . . . 5 . 2 . . . . 1 . . . . . . . . 5 . . . Garrison Access 20 | . . . . 2 . 2 . . 1 . 3 . 2 . . . . 1 . . . 1 . 3 . . . 5 . . Terminal Hacks 120 | . 7 . 4 3 3 1 1 1 . 1 10 1 5 5 . 8 . 13 17 . . 4 2 . 6 1 6 17 . 4 Record 17 | . . . 3 . . . 1 . . . . . . 4 . 2 . . . . . 1 . . . . . 6 . . Robot Schematic 1 | . . . . . . . . . . . . . . . . . . . 1 . . . . . . . . . . . Robot Analysis 7 | . 1 . . 1 . 1 . . . . . . . . . . . 1 1 . . . . . . . . 1 . 1 Prototype ID Bank 15 | . 3 . . 1 . . . . . . 1 . . . . 5 . 1 1 . . 1 . . . . . 2 . . Open Door 13 | . . . . . . . . 1 . . . . . 1 . 1 . 1 9 . . . . . . . . . . . Open DSF 1 | . . . . . . . . . . . 1 . . . . . . . . . . . . . . . . . . . Level Access Points 2 | . . . . . . . . . . . . . . . . . . . . . . . . . 1 1 . . . . Branch Access Points 1 | . . . . . . . . . . . . . . . . . . . . . . . . . . . 1 . . . Emergency Access Points 4 | . . . . . 1 . . . . 1 . 1 . . . . . . . . . . 1 . . . . . . . Machine Index 1 | . . . . . . . . . . . . . 1 . . . . . . . . . . . . . . . . . Terminal Index 1 | . . . . . . . . . . . . . . . . . . . . . . . . . . . . 1 . . Garrison Index 2 | . . . . . . . . . . . . . . . . . . 1 . . . . . . . . . 1 . . Alert Level 21 | . 1 . . . . . . . . . 4 . 1 . . . . 5 1 . . 1 . . 2 . 2 1 . 3 Unreport Threat 21 | . 2 . . . . . . . . . 3 . 3 . . . . 4 2 . . . . . 2 . 3 2 . . Locate Traps 5 | . . . . 1 . . . . . . . . . . . . . . 2 . . 1 . . . . . 1 . . Recall Reinforcements 2 | . . . . . . . . . . . 1 . . . . . . . . . . . . . 1 . . . . . Zone Layout 1 | . . . . . . . . . . . . . . . . . . . . . . . . . . . . 1 . . Garrison Registry 1 | . . . . . 1 . . . . . . . . . . . . . . . . . . . . . . . . . Patrol Navigation 1 | . . . . . . . . . . . . . . . . . . . . . . . 1 . . . . . . . Security Stations 1 | . . . . . 1 . . . . . . . . . . . . . . . . . . . . . . . . . Proto ID Catalog 2 | . . . 1 . . . . . . . . . . . . . . . . . . . . . . . . 1 . . Fabricator Hacks 2 | . . . . . . 1 . . . . . . 1 . . . . . . . . . . . . . . . . . Network Status 2 | . . . . . . 1 . . . . . . 1 . . . . . . . . . . . . . . . . . Repair Station Hacks . | . . . . . . . . . . . . . . . . . . . . . . . . . . . . . . . Recycling Unit Hacks 18 | . 1 . . 2 . . . . . . 4 . 3 . . . . 6 2 . . . . . . . . . . . Retrieve Components 18 | . 1 . . 2 . . . . . . 4 . 3 . . . . 6 2 . . . . . . . . . . . Scanalyzer 9 | . . . . 1 . 1 . . . . 4 . 1 . . . . 1 . . . . . . . . 1 . . . Retrieve Study 9 | . . . . 1 . 1 . . . . 4 . 1 . . . . 1 . . . . . . . . 1 . . . Garrison Access Hacks 8 | . . . . 1 . 1 . . 1 . 2 . 1 . . . . 1 . . . 1 . . . . . . . . Unlock Access 8 | . . . . 1 . 1 . . 1 . 2 . 1 . . . . 1 . . . 1 . . . . . . . . Unauthorized Hacks 29 | . 6 . . 8 . . . . . . 3 . 2 . . . . 4 2 . . . 2 1 . . . 1 . . Terminals 21 | . 4 . . 5 . . . . . . 2 . 1 . . . . 4 2 . . . 2 . . . . 1 . . Botnet 19 | . 4 . . 3 . . . . . . 2 . 1 . . . . 4 2 . . . 2 . . . . 1 . . Sabotage 2 | . . . . 2 . . . . . . . . . . . . . . . . . . . . . . . . . . Fabricators 2 | . . . . . . . . . . . 1 . 1 . . . . . . . . . . . . . . . . . Liberate 1 | . . . . . . . . . . . . . 1 . . . . . . . . . . . . . . . . . Download 1 | . . . . . . . . . . . 1 . . . . . . . . . . . . . . . . . . . Repair Stations 1 | . . . . 1 . . . . . . . . . . . . . . . . . . . . . . . . . . Patch 1 | . . . . 1 . . . . . . . . . . . . . . . . . . . . . . . . . . Recycling Units 4 | . 2 . . 2 . . . . . . . . . . . . . . . . . . . . . . . . . . Tunnel 4 | . 2 . . 2 . . . . . . . . . . . . . . . . . . . . . . . . . . Scanalyzers . | . . . . . . . . . . . . . . . . . . . . . . . . . . . . . . . Garrison Access 1 | . . . . . . . . . . . . . . . . . . . . . . . . 1 . . . . . . Jam 1 | . . . . . . . . . . . . . . . . . . . . . . . . 1 . . . . . . Data Cores Recovered 12 | . 1 . . 1 . 1 . . . . 3 . 1 . . . . 1 1 . . 1 . . 1 . 1 . . . Used 3 | . . . . . . . . . . . 1 . . . . . . . 1 . . 1 . . . . . . . . Hacking Detections 102 | . 8 . . 5 3 4 . . 1 2 15 1 9 . . . . 18 13 1 . 6 2 1 3 . 1 8 . 1 Full Trace Events 18 | . 5 . . 1 2 . . . . 1 1 . 1 . . . . 1 1 . . 2 1 . . . . 1 . 1 Feedback Events 1 | . . . . 1 . . . . . . . . . . . . . . . . . . . . . . . . . . Corruption 1 | . . . . 1 . . . . . . . . . . . . . . . . . . . . . . . . . . Feedback Blocked . | . . . . . . . . . . . . . . . . . . . . . . . . . . . . . . . Robot Schematics Acquired 9 | . . . . . . . . . . . . . . . . . . . 1 . . . . . 1 . 1 6 . . Robots Built . | . . . . . . . . . . . . . . . . . . . . . . . . . . . . . . . Authchips . | . . . . . . . . . . . . . . . . . . . . . . . . . . . . . . . Time . | . . . . . . . . . . . . . . . . . . . . . . . . . . . . . . . Total Robot Build Rating . | . . . . . . . . . . . . . . . . . . . . . . . . . . . . . . . Part Schematics Acquired 32 | . . . . . . . . . . . 1 . . . . . . . . . . . . . 4 . 3 24 . . Parts Built . | . . . . . . . . . . . . . . . . . . . . . . . . . . . . . . . Authchips . | . . . . . . . . . . . . . . . . . . . . . . . . . . . . . . . Time . | . . . . . . . . . . . . . . . . . . . . . . . . . . . . . . . Total Part Build Rating . | . . . . . . . . . . . . . . . . . . . . . . . . . . . . . . . Part Studies Acquired 9 | . . . . 1 . 1 . . . . 4 . 1 . . . . 1 . . . . . . . . 1 . . . Parts Repaired . | . . . . . . . . . . . . . . . . . . . . . . . . . . . . . . . Time . | . . . . . . . . . . . . . . . . . . . . . . . . . . . . . . . Parts Recycled . | . . . . . . . . . . . . . . . . . . . . . . . . . . . . . . . Recycled Matter . | . . . . . . . . . . . . . . . . . . . . . . . . . . . . . . . Retrieved Matter . | . . . . . . . . . . . . . . . . . . . . . . . . . . . . . . . Retrieved Components 60 | . 2 . . 20 . . . . . . 7 . 10 . . . . 17 4 . . . . . . . . . . . Parts Scanalyzed . | . . . . . . . . . . . . . . . . . . . . . . . . . . . . . . . Part Schematics Acquired . | . . . . . . . . . . . . . . . . . . . . . . . . . . . . . . . Parts Damaged . | . . . . . . . . . . . . . . . . . . . . . . . . . . . . . . . Bothacking | -11 -10 -10 -10 -8 -8 -7 -7 -7 -6 -6 -6 -6 -5 -5 -5 -5 -4 -4 -4 -4 -4 -4 -4 -3 -3 -2 -2 -2 -1 -1 ------------ Run | Yrd Mat Min Sub Mat Gar Fac Low Low Fac Gar Fac Gar Fac Upp Upp War Pro Fac Ext Cet Arc Hub Gar Res Qua Res Tes Frg Acc Com Used RIF Installer . | . . . . . . . . . . . . . . . . . . . . . . . . . . . . . . . Robots Hacked . | . . . . . . . . . . . . . . . . . . . . . . . . . . . . . . . Non-combat . | . . . . . . . . . . . . . . . . . . . . . . . . . . . . . . . Combat . | . . . . . . . . . . . . . . . . . . . . . . . . . . . . . . . Robot Hacks Applied . | . . . . . . . . . . . . . . . . . . . . . . . . . . . . . . . Relay Couplers Released 42 | . . . . . 7 . . . . 8 1 10 2 . . . . 1 . . . . 8 1 . 1 1 1 1 . Machine Destruction 41 | . . . . . 7 . . . . 8 1 10 2 . . . . 1 . . . . 7 1 . 1 1 1 1 . Programmers 1 | . . . . . . . . . . . . . . . . . . . . . . . 1 . . . . . . . Fabnet Peak Effective % . | . . . . . . . . . . . . . . . . . . . . . . . . . . . . . . . Robots Rewired 22 | . . . . . 2 1 . . . 1 . 3 . 2 . 5 . . 8 . . . . . . . . . . . Allies Hacked . | . . . . . . . . . . . . . . . . . . . . . . . . . . . . . . . Hacks Repelled . | . . . . . . . . . . . . . . . . . . . . . . . . . . . . . . . Allies | -11 -10 -10 -10 -8 -8 -7 -7 -7 -6 -6 -6 -6 -5 -5 -5 -5 -4 -4 -4 -4 -4 -4 -4 -3 -3 -2 -2 -2 -1 -1 -------- Run | Yrd Mat Min Sub Mat Gar Fac Low Low Fac Gar Fac Gar Fac Upp Upp War Pro Fac Ext Cet Arc Hub Gar Res Qua Res Tes Frg Acc Com Total Allies 69 | . . . . . 2 1 . . . 1 12 5 . 2 . 5 . . 19 5 . . 2 . . . . . . 15 Largest Group 20 | . . . . . 2 1 . . . 1 9 5 5 2 2 5 . . 19 20 20 19 2 . . . . . . 14 Highest-Rated Group 1209 | . . . . . 26 21 . . . 116 266 311 311 59 59 241 . . 888 1209 1209 1050 190 . . . . . . 201 Highest-Rated Ally 159 | . . . . . 16 21 . . . 116 116 119 119 30 30 64 . . 159 159 159 96 95 . . . . . . 15 Initial Warlord ECA Mod 32 | . . . . . . 9 9 9 8 8 15 15 23 23 23 23 22 22 22 22 22 22 22 32 32 31 31 31 30 30 Total Orders 2 | . . . . . . . . . . . . . . . . 2 . . . . . . . . . . . . . . STAY 1 | . . . . . . . . . . . . . . . . 1 . . . . . . . . . . . . . . FOLLOW 1 | . . . . . . . . . . . . . . . . 1 . . . . . . . . . . . . . . Ally Attacks 269 | . . . . . 12 4 . . . 1 12 . 40 . 1 32 . . 26 48 8 35 . . . . . . . 50 Total Damage 8381 | . . . . . 195 31 . . . 61 654 . 2165 . . 1450 . . 574 1186 197 872 . . . . . . . 996 Kills 35 | . . . . . 1 . . . . 1 7 . 9 . . 7 . . 4 2 . . . . . . . . . 4 Allies Corrupted 13 | . . . . . . . . . . . . . 1 . . . . . . . . 12 . . . . . . . . Allies Melted 4 | . . . . . . . . . . . . . . . . 3 . . . . . . . . . 1 . . . . Intel | -11 -10 -10 -10 -8 -8 -7 -7 -7 -6 -6 -6 -6 -5 -5 -5 -5 -4 -4 -4 -4 -4 -4 -4 -3 -3 -2 -2 -2 -1 -1 ------- Run | Yrd Mat Min Sub Mat Gar Fac Low Low Fac Gar Fac Gar Fac Upp Upp War Pro Fac Ext Cet Arc Hub Gar Res Qua Res Tes Frg Acc Com Active Infowar (turns) 4673 | . 899 326 1180 925 . . . . . . . . . . . 3 . . . . . 1 . . . 3 . 1336 . . Optics 3311 | . 874 326 1180 925 . . . . . . . . . . . 3 . . . . . . . . . 2 . 1 . . Seismic 90 | . 90 . . . . . . . . . . . . . . . . . . . . . . . . . . . . . T.N.C. 1 | . . . . . . . . . . . . . . . . . . . . . . . . . . 1 . . . . Cloaking 1336 | . . . . . . . . . . . . . . . . . . . . . . . . . . . . 1336 . . ECM 2 | . . . . . . . . . . . . . . . . . . . . . . 1 . . . . . 1 . . Robot Analysis Total 7 | . 1 . . 1 . 1 . . . . . . . . . . . 1 1 . . . . . . . . 1 . 1 Derelict Logs Recovered 10 | . . 1 . . . . 2 2 . . . . . 2 2 . 1 . . . . . . . . . . . . . Drone Launches . | . . . . . . . . . . . . . . . . . . . . . . . . . . . . . . . Drone Recoveries . | . . . . . . . . . . . . . . . . . . . . . . . . . . . . . . . Exploration | -11 -10 -10 -10 -8 -8 -7 -7 -7 -6 -6 -6 -6 -5 -5 -5 -5 -4 -4 -4 -4 -4 -4 -4 -3 -3 -2 -2 -2 -1 -1 ------------- Run | Yrd Mat Min Sub Mat Gar Fac Low Low Fac Gar Fac Gar Fac Upp Upp War Pro Fac Ext Cet Arc Hub Gar Res Qua Res Tes Frg Acc Com Turns Passed 25270 | 88 990 326 1180 1322 745 1217 227 313 236 501 612 792 1388 415 188 1278 327 818 406 279 105 327 1318 857 1493 1294 360 3226 1393 1249 Spaces Moved 47965 | 55 997 666 2201 1385 814 2972 804 1029 600 835 1779 1407 2766 936 588 1697 923 2370 719 267 113 653 1742 2539 2403 3460 1043 5027 3089 2086 Core 681 | 5 507 . . 139 8 . . . . . . 7 . 1 . 10 . . 4 . . . . . . . . . . . Treads 11 | 11 . . . . . . . . . . . . . . . . . . . . . . . . . . . . . . Legs 136 | 36 100 . . . . . . . . . . . . . . . . . . . . . . . . . . . . . Wheels 3 | 3 . . . . . . . . . . . . . . . . . . . . . . . . . . . . . . Hover . | . . . . . . . . . . . . . . . . . . . . . . . . . . . . . . . Flight 47134 | . 390 666 2201 1246 806 2972 804 1029 600 835 1779 1400 2766 935 588 1687 923 2370 715 267 113 653 1742 2539 2403 3460 1043 5027 3089 2086 Fastest Speed 7 | 50 40 40 34 34 37 17 23 23 23 23 23 20 25 25 25 23 23 15 15 15 15 15 15 15 13 15 11 7 8 8 Average Speed 21 | 119 53 40 38 43 37 25 23 23 23 23 23 23 25 25 25 24 23 16 15 15 15 15 41 15 15 15 14 11 11 11 Slowest Speed 190 | 160 120 40 40 120 100 87 23 23 23 103 23 150 108 150 25 150 23 94 150 15 15 15 190 15 19 16 15 86 89 15 Overloaded Moves 825 | . . . . . . 24 . . . . . . . . . . . 5 . . . . . . 26 . . 234 294 242 Propulsion Burnouts . | . . . . . . . . . . . . . . . . . . . . . . . . . . . . . . . Robots Hopped 58 | . . . . 2 4 2 . . . . . . 1 . . 1 . 2 4 . . . . . . 40 . . 1 1 Potential Cave-ins . | . . . . . . . . . . . . . . . . . . . . . . . . . . . . . . . Cave-ins Triggered . | . . . . . . . . . . . . . . . . . . . . . . . . . . . . . . . Teleports 1 | . . . . . . . . . . . . . . . . . . . . . . . . . 1 . . . . . Exploration Rate (%) 78 | 4 97 95 95 90 89 65 92 95 16 94 48 98 76 90 84 94 94 67 81 75 79 79 97 75 97 87 84 83 79 36 Regions Visited 30 Branch Regions 16 Pre-discovered Areas 7 | . 2 . 2 2 . . 1 . . . . . . . . . . . . . . . . . . . . . . . Known Exits Taken 21 | . . . . 1 . 1 1 1 1 . 1 . 1 1 1 . 1 1 1 1 1 1 . 1 1 1 1 1 1 . Unknown Exits Taken 5 | 1 1 1 1 . . . . . . . . . . . . 1 . . . . . . . . . . . . . . Scrap Searched 39 | . . 1 15 . . . 3 9 . . . . . 3 4 . 4 . . . . . . . . . . . . . Spaces Dug 118 | . 1 . 5 5 5 9 2 . . 17 3 3 6 2 1 . 3 4 1 . . 3 6 7 8 9 2 4 10 2 Terrain Destroyed 1780 | . 1 28 25 115 165 162 32 15 38 56 3 3 214 2 1 39 3 22 1 . . 669 54 7 32 9 2 4 10 68 Melee 91 | . 1 . 5 5 . 9 2 . . 1 3 3 5 2 1 . 3 4 1 . . 1 6 5 7 9 2 4 10 2 Projectile 6 | . . . . . . . . . . . . . 1 . . . . . . . . 2 . 2 1 . . . . . AOE 1683 | . . 28 20 110 165 153 30 15 38 55 . . 208 . . 39 . 18 . . . 666 48 . 24 . . . . 66 Terrain Rammed . | . . . . . . . . . . . . . . . . . . . . . . . . . . . . . . . Walls Destroyed . | . . . . . . . . . . . . . . . . . . . . . . . . . . . . . . . Machines Disabled . | . . . . . . . . . . . . . . . . . . . . . . . . . . . . . . . Actions | -11 -10 -10 -10 -8 -8 -7 -7 -7 -6 -6 -6 -6 -5 -5 -5 -5 -4 -4 -4 -4 -4 -4 -4 -3 -3 -2 -2 -2 -1 -1 --------- Run | Yrd Mat Min Sub Mat Gar Fac Low Low Fac Gar Fac Gar Fac Upp Upp War Pro Fac Ext Cet Arc Hub Gar Res Qua Res Tes Frg Acc Com Total 59037 | 67 1249 703 2416 1920 1103 3270 835 1088 659 1095 1937 1744 3221 1077 617 2411 996 2627 939 482 194 799 2239 2870 3333 3996 1183 7207 3883 2877 Wait 4393 | 1 106 11 115 321 12 34 13 19 . 95 26 71 46 46 . 389 19 14 128 187 62 18 266 69 595 195 4 1015 242 274 Move 47838 | 54 996 665 2200 1381 807 2967 803 1028 599 834 1778 1405 2762 935 587 1694 922 2364 712 266 112 653 1738 2537 2402 3402 1042 5024 3085 2084 Hop 31 | . . . . 2 2 2 . . . . . . 1 . . 1 . 2 2 . . . . . . 17 . . 1 1 Pick Up 24 | 1 2 2 1 2 1 2 . . . . 1 1 . . . . . 2 . . . . . . 4 . . 4 1 . Fast Attach 219 | 5 6 1 6 14 2 15 . 3 2 . 5 9 4 . . 11 . 13 . . . 8 . 5 6 11 12 56 10 15 Attach 8 | . . 2 . . 2 2 . . . . . . . . . . . . . . . 1 . . . . . 1 . . Detach 5 | . . . . . 1 3 . . . . . . . . . . . . . . . 1 . . . . . . . . Swap 192 | 3 4 1 4 12 1 14 2 4 2 4 8 1 13 . . 15 . 9 . . . 9 1 14 9 11 10 33 6 2 Drop 183 | . 7 2 6 9 2 17 . 3 . . 10 7 2 . . 8 . 13 . . . 7 1 9 8 11 11 41 7 2 Fire 114 | 3 10 5 1 14 12 13 2 1 1 5 . . 14 . . 10 . 2 . . . 5 . 9 7 . . . . . Melee 2946 | . 88 8 65 111 87 120 8 16 40 53 53 123 203 38 15 109 29 123 50 14 5 57 95 116 158 162 56 439 253 252 Ram . | . . . . . . . . . . . . . . . . . . . . . . . . . . . . . . . Kick . | . . . . . . . . . . . . . . . . . . . . . . . . . . . . . . . Crush . | . . . . . . . . . . . . . . . . . . . . . . . . . . . . . . . Escape Stasis 577 | . . . . . 105 8 . . . 61 20 54 16 . . . . 13 . . . . 71 6 . . . 177 16 30 Rewire 91 | . . . . . 6 10 . . . 18 . 6 . 7 . 22 . . 22 . . . . . . . . . . . Trap . | . . . . . . . . . . . . . . . . . . . . . . . . . . . . . . . Miscellaneous 2416 | . 30 6 18 54 63 63 7 14 15 25 36 67 160 51 15 152 26 72 25 15 15 40 67 105 144 187 48 417 262 217 Route ------- -11/Scrapyard -10/Materials (discovered 5 exits: [*Mat x3] / [*Min x2]) -10/Mines (discovered 3 exits: [*Mat x2] / *Sub) -10/Subcaves (discovered 3 exits: *Mat x2 / [*Rec]) -8/Materials (discovered 4 exits: *Fac x3 / Gar) -8/Garrison (discovered 3 exits: *Fac x3) -7/Factory (discovered 5 exits: *Fac x3 / *Low / Gar) -7/Lower Caves (discovered 2 exits: *Low / *Zio) -7/Lower Caves (discovered 2 exits: *Fac / *Zio) -6/Factory (discovered 3 exits: Fac / Low / Gar) -6/Garrison (discovered 3 exits: *Fac x3) -6/Factory (discovered 5 exits: *Fac x2 / *Low x2 / Gar) -6/Garrison (discovered 3 exits: *Fac x3) -5/Factory (discovered 5 exits: *Fac x4 / *Upp) -5/Upper Caves -5/Upper Caves -5/Warlord -4/Proximity Caves -4/Factory (discovered 7 exits: *Res x4 / *Upp x2 / *Ext) -4/Extension (discovered 2 exits: *Res / *Cet) -4/Cetus (discovered 2 exits: *Res / *Arc) -4/Archives (discovered 3 exits: *Res / *Hub x2) -4/Hub_04(d) (discovered 4 exits: *Res x3 / Gar) -4/Garrison (discovered 3 exits: *Res x3) -3/Research (discovered 6 exits: *Res x3 / *Arm / *Qua x2) -3/Quarantine -2/Research (discovered 5 exits: *Acc x3 / *Tes x2) -2/Testing (discovered 3 exits: *Acc / [*Sec] / *Frg) -2/Protoforge -1/Access (discovered 2 exits: *Sur / *Com) -1/Command History --------- Turn | Location | Event 2 | -11/Scrapyard | Upgraded with Propulsion slot (x1) 2 | -11/Scrapyard | Upgraded with Utility slot (x1) 2 | -11/Scrapyard | Upgraded with Weapon slot (x1) 13 | -11/Scrapyard | Discovered new exit (range 15) 89 | -11/Scrapyard | Entered Materials 283 | -10/Materials | Discovered new exit (range 9) 323 | -10/Materials | Discovered new exit (range 3) 324 | -10/Materials | Build established: Mutant 461 | -10/Materials | Discovered new exit (range 8) 603 | -10/Materials | Discovered new exit (range 17) 689 | -10/Materials | Derelicts attacked the area 744 | -10/Materials | Core integrity fell below 50% 747 | -10/Materials | Reached level 2 753 | -10/Materials | Build established: Gladiator 929 | -10/Materials | Discovered new exit (range 11) 964 | -10/Materials | Reached level 3 973 | -10/Materials | Upgraded with Weapon slot (x1) 1079 | -10/Materials | Entered Mines 1105 | -10/Mines | Discovered new exit (range 13) 1112 | -10/Mines | Received a Rocket Launcher from a helpful Derelict 1132 | -10/Mines | A weapon hastily lodged in a ceiling crevice suddenly fell to the ground 1203 | -10/Mines | Found a hidden stash of uninstalled traps 1306 | -10/Mines | Discovered new exit (range 11) 1325 | -10/Mines | Reached level 4 1332 | -10/Mines | Upgraded with Utility slot (x1) 1361 | -10/Mines | Discovered new exit (range 10) 1405 | -10/Mines | Entered Subcaves 1450 | -10/Subcaves | Visited 4L-MR0's lab 1482 | -10/Subcaves | Learned location of Zion (-7) 1482 | -10/Subcaves | Met a Zionite searching for "candidates" 1490 | -10/Subcaves | Discovered new exit (range 12) 1498 | -10/Subcaves | Visited Clippyterm 1499 | -10/Subcaves | Learned location of Extension (-4) 1564 | -10/Subcaves | Discovered new exit (range 13) 1673 | -10/Subcaves | Disturbed a concealed Subdweller 2112 | -10/Subcaves | Build established: Hacker-Gladiator 2203 | -10/Subcaves | Ambushed by Subdwellers from Twisted Machinery 2265 | -10/Subcaves | Reached level 5 2271 | -10/Subcaves | Upgraded with Propulsion slot (x1) 2442 | -10/Subcaves | A swath of the cavern ceiling suddenly collapsed 2483 | -10/Subcaves | Disturbed a concealed Subdweller 2511 | -10/Subcaves | Discovered new exit (range 11) 2585 | -10/Subcaves | Entered Materials 2587 | -8/Materials | Reached level 6 2587 | -8/Materials | Upgraded with Weapon slot (x1) 2868 | -8/Materials | Central database locked down 2888 | -8/Materials | Build established: Derelict-Gladiator 2900 | -8/Materials | Reached level 7 2923 | -8/Materials | Upgraded with Utility slot (x1) 2967 | -8/Materials | Discovered new exit (range 10) 3143 | -8/Materials | Reached level 8 3146 | -8/Materials | Upgraded with Utility slot (x1) 3146 | -8/Materials | Garrison activated, responded to threat 3176 | -8/Materials | Discovered new exit (range 16) 3443 | -8/Materials | Reached level 9 3444 | -8/Materials | Identified exit to Factory 3578 | -8/Materials | Core integrity fell below 50% 3594 | -8/Materials | Reached level 10 3664 | -8/Materials | Discovered exit to Factory (range 12) 3802 | -8/Materials | Build established: Gladiator 3907 | -8/Materials | Identified exit to Garrison 3907 | -8/Materials | Entered Garrison 3909 | -8/Garrison | Reached level 11 3910 | -8/Garrison | Upgraded with Propulsion slot (x1) 3999 | -8/Garrison | Triggered checkpoint 4014 | -8/Garrison | Garrison Relay disabled 4117 | -8/Garrison | Triggered checkpoint 4119 | -8/Garrison | Triggered checkpoint 4123 | -8/Garrison | Reached level 12 4159 | -8/Garrison | Destroyed 7 combat bots 4195 | -8/Garrison | Triggered checkpoint 4203 | -8/Garrison | Triggered checkpoint 4213 | -8/Garrison | Build established: Scout 4320 | -8/Garrison | Learned Factory security intel 4325 | -8/Garrison | Upgraded with Weapon slot (x1) 4331 | -8/Garrison | Discovered exit to Factory (range 11) 4366 | -8/Garrison | Garrison Relay disabled 4404 | -8/Garrison | Phase Generator disabled 4423 | -8/Garrison | Triggered checkpoint 4494 | -8/Garrison | Reached level 13 4519 | -8/Garrison | Triggered checkpoint 4528 | -8/Garrison | Garrison Relay disabled 4537 | -8/Garrison | Discovered exit to Factory (range 84) 4537 | -8/Garrison | Discovered exit to Factory (range 39) 4537 | -8/Garrison | Discovered exit to Factory (range 22) 4571 | -8/Garrison | Triggered checkpoint 4582 | -8/Garrison | Garrison Relay disabled 4652 | -8/Garrison | Entered Factory 4654 | -7/Factory | Reached level 14 4654 | -7/Factory | Upgraded with Propulsion slot (x1) 4654 | -7/Factory | Upgraded with Utility slot (x1) 4809 | -7/Factory | Reached level 15 4838 | -7/Factory | Identified exit to Garrison 5043 | -7/Factory | High security lockdown imminent 5123 | -7/Factory | High security lockdown engaged 5144 | -7/Factory | Build established: Scavenger-Scout 5169 | -7/Factory | Reached level 16 5445 | -7/Factory | Discovered new exit (range 7) 5494 | -7/Factory | Identified exit to Factory 5627 | -7/Factory | Discovered exit to Factory (range 16) 5692 | -7/Factory | Discovered exit to Factory (range 8) 5847 | -7/Factory | Discovered new exit (range 8) 5850 | -7/Factory | Identified exit to Lower Caves 5861 | -7/Factory | Reached level 17 5869 | -7/Factory | Entered Lower Caves 5869 | -7/Lower Caves | Upgraded with Utility slot (x1) 5876 | -7/Lower Caves | Met a Warlord Commander 5877 | -7/Lower Caves | Learned location of Warlord (-5) 5878 | -7/Lower Caves | Warlord Commander delivered Encrypted Comm Array 5886 | -7/Lower Caves | Entered a destroyed Warlord outpost 5897 | -7/Lower Caves | Identified exit to Lower Caves 5899 | -7/Lower Caves | A Derelict revealed a hidden shortcut to a safe place 5902 | -7/Lower Caves | Identified exit to Zion 6044 | -7/Lower Caves | Learned location of 1 exit from Factory 6049 | -7/Lower Caves | Encountered a Warlord checkpoint 6096 | -7/Lower Caves | Entered another Lower Caves area 6111 | -7/Lower Caves | Discovered exit to Factory (range 3) 6146 | -7/Lower Caves | Learned Factory garrison access intel 6170 | -7/Lower Caves | Attracted the attention of an 0b10 outpost 6252 | -7/Lower Caves | Ambushed by wild Derelicts 6296 | -7/Lower Caves | Encountered a Warlord checkpoint 6320 | -7/Lower Caves | Learned location of 1 exit from Factory 6332 | -7/Lower Caves | Discovered exit to Zion (range 12) 6409 | -7/Lower Caves | Entered Factory 6410 | -6/Factory | Identified exit to Lower Caves 6410 | -6/Factory | Identified exit to Factory 6411 | -6/Factory | Loaded intel: 4 garrison access locations 6411 | -6/Factory | Reached level 18 6416 | -6/Factory | Spotted B-75 Beast 6431 | -6/Factory | Destroyed B-75 Beast 6456 | -6/Factory | Identified exit to Garrison 6591 | -6/Factory | Reached level 19 6593 | -6/Factory | Upgraded with Utility slot (x1) 6622 | -6/Factory | High security lockdown imminent 6643 | -6/Factory | Destroyed 8 combat bots 6645 | -6/Factory | Entered Garrison 6671 | -6/Garrison | Garrison Relay disabled 6700 | -6/Garrison | Triggered checkpoint 6709 | -6/Garrison | Triggered checkpoint 6763 | -6/Garrison | Rewired B-86 Titan 6784 | -6/Garrison | Discovered new exit (range 12) 6794 | -6/Garrison | Garrison Relay disabled 6798 | -6/Garrison | Triggered checkpoint 6880 | -6/Garrison | Garrison Relay disabled 6883 | -6/Garrison | Triggered checkpoint 6901 | -6/Garrison | Discovered new exit (range 9) 6905 | -6/Garrison | Identified exit to Factory 6941 | -6/Garrison | Triggered checkpoint 6950 | -6/Garrison | Garrison Relay disabled 6950 | -6/Garrison | Reached level 20 6963 | -6/Garrison | Discovered exit to Factory (range 15) 6970 | -6/Garrison | Garrison Relay disabled 7071 | -6/Garrison | Triggered checkpoint 7146 | -6/Garrison | Entered Factory 7146 | -6/Factory | Accompanied by 1 ally 7221 | -6/Factory | Spotted B-75 Beast 7238 | -6/Factory | Destroyed B-75 Beast 7336 | -6/Factory | Identified exit to Garrison 7481 | -6/Factory | Discovered exit to Lower Caves (range 16) 7496 | -6/Factory | First assault squad dispatched 7534 | -6/Factory | Build established: Hacker-Scout 7551 | -6/Factory | Destroyed 7 combat bots 7567 | -6/Factory | Discovered exit to Factory (range 15) 7649 | -6/Factory | Discovered exit to Factory (range 16) 7688 | -6/Factory | Identified exit to Garrison 7694 | -6/Factory | Discovered exit to Lower Caves (range 16) 7758 | -6/Factory | Entered Garrison 7786 | -6/Garrison | Triggered checkpoint 7790 | -6/Garrison | Reached level 21 7799 | -6/Garrison | Garrison Relay disabled 7809 | -6/Garrison | Triggered checkpoint 7850 | -6/Garrison | Triggered checkpoint 7877 | -6/Garrison | Phase Generator disabled 7877 | -6/Garrison | Spotted B-75 Beast 7894 | -6/Garrison | Destroyed B-75 Beast 7914 | -6/Garrison | Spotted B-75 Beast 7938 | -6/Garrison | Destroyed B-75 Beast 7967 | -6/Garrison | Destroyed 16 combat bots 7976 | -6/Garrison | Spotted Striker 7983 | -6/Garrison | Destroyed Striker 8044 | -6/Garrison | Triggered checkpoint 8062 | -6/Garrison | Triggered checkpoint 8078 | -6/Garrison | Garrison Relay disabled 8082 | -6/Garrison | Garrison Relay disabled 8130 | -6/Garrison | Discovered exit to Factory (range 11) 8142 | -6/Garrison | Triggered checkpoint 8142 | -6/Garrison | Destroyed 15 combat bots 8176 | -6/Garrison | Triggered checkpoint 8176 | -6/Garrison | Triggered checkpoint 8231 | -6/Garrison | Destroyed 16 combat bots 8232 | -6/Garrison | Discovered exit to Factory (range 11) 8241 | -6/Garrison | Triggered checkpoint 8248 | -6/Garrison | Garrison Relay disabled 8259 | -6/Garrison | Spotted B-75 Beast 8285 | -6/Garrison | Destroyed B-75 Beast 8343 | -6/Garrison | Discovered exit to Factory (range 16) 8365 | -6/Garrison | Garrison Relay disabled 8368 | -6/Garrison | Triggered checkpoint 8442 | -6/Garrison | Found embedded Infiltrators 8443 | -6/Garrison | Garrison Relay disabled 8460 | -6/Garrison | Reached level 22 8461 | -6/Garrison | Upgraded with Propulsion slot (x1) 8501 | -6/Garrison | Rewired Executioner 8550 | -6/Garrison | Entered Factory 8550 | -5/Factory | Accompanied by 5 allies 8666 | -5/Factory | Identified exit to Garrison 8682 | -5/Factory | Central database locked down 8705 | -5/Factory | Garrison activated, responded to threat 8728 | -5/Factory | Reached level 23 8751 | -5/Factory | Destroyed 9 combat bots 8850 | -5/Factory | First assault squad dispatched 8917 | -5/Factory | High security lockdown imminent 8944 | -5/Factory | Discovered new exit (range 18) 8952 | -5/Factory | Destroyed 7 combat bots 8956 | -5/Factory | Garrison activated, responded to threat 8997 | -5/Factory | High security lockdown engaged 9108 | -5/Factory | Destroyed 12 combat bots 9137 | -5/Factory | Reached level 24 9193 | -5/Factory | Identified exit to Factory 9200 | -5/Factory | Destroyed 22 combat bots 9226 | -5/Factory | Upgraded with Utility slot (x1) 9292 | -5/Factory | Discovered exit to Factory (range 4) 9364 | -5/Factory | Discovered exit to Factory (range 5) 9418 | -5/Factory | Destroyed 11 combat bots 9460 | -5/Factory | Discovered exit to Factory (range 9) 9557 | -5/Factory | Reached level 25 9569 | -5/Factory | Core integrity fell below 50% 9597 | -5/Factory | Destroyed 26 combat bots 9617 | -5/Factory | Sterilization system engaged 9617 | -5/Factory | Non-combat units ordered to evacuate 9663 | -5/Factory | Destroyed 9 combat bots 9717 | -5/Factory | Combat units ordered to evacuate 9809 | -5/Factory | Allied Derelicts emerged from ambush trap array 9871 | -5/Factory | Discovered new exit (range 6) 9872 | -5/Factory | Identified exit to Upper Caves 9917 | -5/Factory | Ambient heat levels rising (+10) 9938 | -5/Factory | Entered Upper Caves 10088 | -5/Upper Caves | Learned 8 Research zone layouts 10088 | -5/Upper Caves | Learned Factory garrison access intel 10088 | -5/Upper Caves | Learned Extension garrison access intel 10094 | -5/Upper Caves | Destroyed 14 combat bots 10163 | -5/Upper Caves | Learned Factory garrison access intel 10165 | -5/Upper Caves | Attracted the attention of an 0b10 outpost 10199 | -5/Upper Caves | Destroyed 7 combat bots 10216 | -5/Upper Caves | Discovered new exit (range 18) 10279 | -5/Upper Caves | Identified exit to Upper Caves 10309 | -5/Upper Caves | Learned Factory terminal intel 10353 | -5/Upper Caves | Entered another Upper Caves area 10353 | -5/Upper Caves | Accompanied by 2 allies 10410 | -5/Upper Caves | Learned 4 Factory zone layouts 10415 | -5/Upper Caves | Attracted the attention of an 0b10 checkpoint 10484 | -5/Upper Caves | Learned Factory terminal intel 10511 | -5/Upper Caves | Discovered new exit (range 8) 10541 | -5/Upper Caves | Identified exit to Warlord 10541 | -5/Upper Caves | Entered Warlord 10554 | -5/Warlord | System corruption cleaned by Quarantine Array 10711 | -5/Warlord | Visited the Vortex Lab 10713 | -5/Warlord | Found Prototype Energy Gun 10713 | -5/Warlord | Identified Vortex Shotgun 10717 | -5/Warlord | Found Prototype Energy Gun 10717 | -5/Warlord | Identified Vortex Rifle 10725 | -5/Warlord | Warlord's base attacked by MAIN.C 10737 | -5/Warlord | Met Warlord 10778 | -5/Warlord | Found Prototype Processor 10778 | -5/Warlord | Identified Spectral Analyzer 10935 | -5/Warlord | Warlord forces counterattacked 10972 | -5/Warlord | Reached level 26 10990 | -5/Warlord | Destroyed 10 combat bots 11025 | -5/Warlord | Spotted Striker 11026 | -5/Warlord | Spotted Executioner 11029 | -5/Warlord | Allies destroyed Striker 11045 | -5/Warlord | Allies destroyed Executioner 11064 | -5/Warlord | Destroyed 8 combat bots 11125 | -5/Warlord | Spotted Executioner 11125 | -5/Warlord | Spotted Striker 11125 | -5/Warlord | Spotted Executioner 11140 | -5/Warlord | Destroyed Executioner 11155 | -5/Warlord | Destroyed Striker 11176 | -5/Warlord | Destroyed 8 combat bots 11183 | -5/Warlord | Lost 7 allies 11205 | -5/Warlord | Found Prototype Processor 11205 | -5/Warlord | Identified Exp. Targeting Computer 11210 | -5/Warlord | Found Prototype Processor 11210 | -5/Warlord | Identified Exp. Core Analyzer 11225 | -5/Warlord | Spotted B-86 Titan 11225 | -5/Warlord | Spotted B-75 Beast 11225 | -5/Warlord | Spotted Executioner 11231 | -5/Warlord | Destroyed B-75 Beast 11242 | -5/Warlord | Destroyed Executioner 11263 | -5/Warlord | Destroyed 7 combat bots 11271 | -5/Warlord | Lost 5 allies 11325 | -5/Warlord | Spotted B-86 Titan 11325 | -5/Warlord | Spotted Striker 11325 | -5/Warlord | Spotted Striker 11332 | -5/Warlord | Destroyed Striker 11340 | -5/Warlord | Destroyed Striker 11359 | -5/Warlord | Destroyed B-86 Titan 11378 | -5/Warlord | Lost 10 allies 11380 | -5/Warlord | Destroyed 14 combat bots 11400 | -5/Warlord | Warlord base infiltrated, sounded retreat 11409 | -5/Warlord | Spotted Executioner 11444 | -5/Warlord | Destroyed Executioner 11469 | -5/Warlord | Destroyed 8 combat bots 11490 | -5/Warlord | Found Exp. Core Analyzer 11505 | -5/Warlord | Spotted Striker 11533 | -5/Warlord | Destroyed Striker 11555 | -5/Warlord | Destroyed 9 combat bots 11580 | -5/Warlord | Upgraded with Weapon slot (x1) 11649 | -5/Warlord | Destroyed 9 combat bots 11649 | -5/Warlord | Spotted Executioner 11671 | -5/Warlord | Destroyed Executioner 11692 | -5/Warlord | Destroyed 11 combat bots 11699 | -5/Warlord | Discovered new exit (range 14) 11725 | -5/Warlord | Spotted Striker 11725 | -5/Warlord | Spotted Executioner 11734 | -5/Warlord | Destroyed Striker 11737 | -5/Warlord | Destroyed Executioner 11764 | -5/Warlord | Lost 3 allies 11819 | -5/Warlord | Entered Proximity Caves 11865 | -4/Proximity Caves | Attracted the attention of an 0b10 outpost 11877 | -4/Proximity Caves | Build established: Scavenger-Sprinter 11912 | -4/Proximity Caves | Destroyed 10 combat bots 11941 | -4/Proximity Caves | Learned Research security intel 11978 | -4/Proximity Caves | Reached level 27 12050 | -4/Proximity Caves | Spotted B-86 Titan 12052 | -4/Proximity Caves | Destroyed B-86 Titan 12065 | -4/Proximity Caves | Discovered exit to Factory (range 6) 12146 | -4/Proximity Caves | Entered Factory 12146 | -4/Factory | Discovered new exit (range 12) 12147 | -4/Factory | Identified exit to Extension 12148 | -4/Factory | Loaded intel: 28 terminal locations 12149 | -4/Factory | Loaded intel: 4 garrison access locations 12217 | -4/Factory | Destroyed 7 combat bots 12248 | -4/Factory | Identified exit to Garrison 12256 | -4/Factory | Discovered new exit (range 8) 12264 | -4/Factory | Watched by a mysterious "MATRIX" hacker. 12301 | -4/Factory | Destroyed 9 combat bots 12432 | -4/Factory | Spotted B-86 Titan 12441 | -4/Factory | Destroyed B-86 Titan 12552 | -4/Factory | Discovered new exit (range 14) 12562 | -4/Factory | Destroyed 13 combat bots 12710 | -4/Factory | Discovered new exit (range 18) 12753 | -4/Factory | Spotted B-86 Titan 12756 | -4/Factory | Destroyed B-86 Titan 12761 | -4/Factory | Build established: Hacker-Scout 12785 | -4/Factory | Reached level 28 12798 | -4/Factory | Destroyed 13 combat bots 12810 | -4/Factory | Discovered new exit (range 2) 12810 | -4/Factory | Identified exit to Research 12869 | -4/Factory | Discovered new exit (range 3) 12869 | -4/Factory | Identified exit to Upper Caves 12896 | -4/Factory | First assault squad dispatched 12964 | -4/Factory | Entered Extension 12978 | -4/Extension | Rescued a captive Derelict 12980 | -4/Extension | Rescued a captive Derelict 13007 | -4/Extension | Rescued a captive Derelict 13010 | -4/Extension | Rescued a captive Derelict 13010 | -4/Extension | Rescued a captive Derelict 13038 | -4/Extension | Rescued a captive Derelict 13038 | -4/Extension | Rescued a captive Derelict 13040 | -4/Extension | Destroyed 8 combat bots 13043 | -4/Extension | Spotted B-86 Titan 13044 | -4/Extension | Rescued a captive Derelict 13048 | -4/Extension | Spotted B-86 Titan 13050 | -4/Extension | Destroyed B-86 Titan 13053 | -4/Extension | Destroyed B-86 Titan 13136 | -4/Extension | Discovered new exit (range 18) 13136 | -4/Extension | Discovered exit to Research (range 17) 13168 | -4/Extension | Rescued a captive Derelict 13182 | -4/Extension | Rescued a captive Derelict 13182 | -4/Extension | Rescued a captive Derelict 13185 | -4/Extension | Rescued a captive Derelict 13214 | -4/Extension | First assault squad dispatched 13222 | -4/Extension | Rescued A7 13352 | -4/Extension | Identified exit to Cetus 13356 | -4/Extension | Disrupted transfer network 13370 | -4/Extension | Entered Cetus 13370 | -4/Cetus | Accompanied by 16 allies (A7) 13373 | -4/Cetus | Spotted Cetus Guard 13374 | -4/Cetus | Spotted Cetus Guard 13375 | -4/Cetus | Acquired a Cetus Manufacturing Module code from A7 13375 | -4/Cetus | Spotted Cetus Guard 13375 | -4/Cetus | Spotted Cetus Guard 13390 | -4/Cetus | Destroyed Cetus Guard 13395 | -4/Cetus | Allies destroyed Cetus Guard 13396 | -4/Cetus | Destroyed Cetus Guard 13411 | -4/Cetus | Started Cetus Manufacturing Module 13433 | -4/Cetus | Escorted A7 to Cetus Mainframe 13436 | -4/Cetus | Manufactured an Enhanced Grunt 13461 | -4/Cetus | Manufactured an Enhanced Grunt 13479 | -4/Cetus | Discovered new exit (range 18) 13482 | -4/Cetus | Spotted Cetus Guard 13482 | -4/Cetus | Spotted Cetus Guard 13486 | -4/Cetus | Manufactured an Enhanced Grunt 13502 | -4/Cetus | Build established: Commander-Scout 13506 | -4/Cetus | Spotted Cetus Guard 13507 | -4/Cetus | Spotted Cetus Guard 13509 | -4/Cetus | Destroyed Cetus Guard 13511 | -4/Cetus | Manufactured an Enhanced Grunt 13515 | -4/Cetus | Destroyed Cetus Guard 13515 | -4/Cetus | Destroyed Cetus Guard 13516 | -4/Cetus | Allies destroyed Cetus Guard 13526 | -4/Cetus | Discovered exit to Research (range 18) 13534 | -4/Cetus | Met Revision 17 13536 | -4/Cetus | Manufactured an Enhanced Grunt 13616 | -4/Cetus | Identified exit to Archives 13649 | -4/Cetus | Entered Archives 13649 | -4/Archives | Accompanied by 20 allies (A7) 13651 | -4/Archives | Reached level 29 13654 | -4/Archives | Discovered new exit (range 18) 13659 | -4/Archives | Received a hacking code to weaken MAIN.C 13662 | -4/Archives | Discovered exit to Research (range 15) 13666 | -4/Archives | Discovered new exit (range 15) 13692 | -4/Archives | Identified exit to Hub_04(d) 13754 | -4/Archives | Entered Hub_04(d) 13754 | -4/Hub_04(d) | Accompanied by 19 allies 13758 | -4/Hub_04(d) | Discovered exit to Research (range 3) 13779 | -4/Hub_04(d) | Upgraded with Weapon slot (x1) 13839 | -4/Hub_04(d) | Destroyed 10 combat bots 13857 | -4/Hub_04(d) | Found Prototype Device 13857 | -4/Hub_04(d) | Identified Exp. ECM Suite 13873 | -4/Hub_04(d) | Network Hub disabled 13918 | -4/Hub_04(d) | Network Hub disabled 13944 | -4/Hub_04(d) | Discovered exit to Research (range 9) 13991 | -4/Hub_04(d) | Spotted Lightning 13991 | -4/Hub_04(d) | Spotted Lightning 13991 | -4/Hub_04(d) | Spotted Lightning 13994 | -4/Hub_04(d) | Destroyed Lightning 14000 | -4/Hub_04(d) | Destroyed Lightning 14004 | -4/Hub_04(d) | Destroyed Lightning 14007 | -4/Hub_04(d) | Found Prototype Energy Cannon 14007 | -4/Hub_04(d) | Identified EMDS 14013 | -4/Hub_04(d) | Found Prototype Device 14013 | -4/Hub_04(d) | Identified Exp. EM Shield 14025 | -4/Hub_04(d) | Destroyed 15 combat bots 14030 | -4/Hub_04(d) | Spotted Lightning 14030 | -4/Hub_04(d) | Spotted Lightning 14030 | -4/Hub_04(d) | Spotted Lightning 14032 | -4/Hub_04(d) | Destroyed Lightning 14034 | -4/Hub_04(d) | High security lockdown imminent 14036 | -4/Hub_04(d) | Destroyed Lightning 14038 | -4/Hub_04(d) | Spotted B-86 Titan 14043 | -4/Hub_04(d) | Destroyed Lightning 14046 | -4/Hub_04(d) | Destroyed B-86 Titan 14054 | -4/Hub_04(d) | Network Hub disabled 14054 | -4/Hub_04(d) | Network Hub disabled 14058 | -4/Hub_04(d) | Discovered exit to Research (range 17) 14081 | -4/Hub_04(d) | Identified exit to Garrison 14081 | -4/Hub_04(d) | Entered Garrison 14086 | -4/Garrison | Lost 6 allies 14095 | -4/Garrison | Spotted B-86 Titan 14097 | -4/Garrison | Triggered checkpoint 14132 | -4/Garrison | Garrison Relay disabled 14189 | -4/Garrison | Destroyed B-86 Titan 14222 | -4/Garrison | Garrison Relay disabled 14230 | -4/Garrison | Triggered checkpoint 14251 | -4/Garrison | Build established: Hacker-Scout 14261 | -4/Garrison | Discovered exit to Research (range 9) 14273 | -4/Garrison | Triggered checkpoint 14284 | -4/Garrison | Triggered checkpoint 14331 | -4/Garrison | Destroyed 16 combat bots 14349 | -4/Garrison | Triggered checkpoint 14374 | -4/Garrison | Garrison Relay disabled 14378 | -4/Garrison | Triggered checkpoint 14408 | -4/Garrison | Discovered exit to Research (range 11) 14412 | -4/Garrison | Spotted B-86 Titan 14414 | -4/Garrison | Destroyed B-86 Titan 14420 | -4/Garrison | Found Adv. Force Booster 14467 | -4/Garrison | Discovered exit to Research (range 10) 14511 | -4/Garrison | Phase Generator disabled 14555 | -4/Garrison | Triggered checkpoint 14572 | -4/Garrison | Garrison Relay disabled 14575 | -4/Garrison | Destroyed 18 combat bots 14612 | -4/Garrison | Found embedded Infiltrators 15163 | -4/Garrison | Build established: Hacker-Gladiator 15366 | -4/Garrison | Attempted to access garrison exit controls, blocked by remote lockdown 15380 | -4/Garrison | Attempted to access garrison exit controls, blocked by remote lockdown 15399 | -4/Garrison | Entered Research 15401 | -3/Research | Reached level 30 15441 | -3/Research | Spotted B-86 Titan 15443 | -3/Research | Destroyed B-86 Titan 15454 | -3/Research | High security lockdown imminent 15484 | -3/Research | Discovered new exit (range 9) 15485 | -3/Research | Identified exit to Research 15524 | -3/Research | Destroyed 13 combat bots 15534 | -3/Research | High security lockdown engaged 15599 | -3/Research | Revision forces began assault on 0b10 15605 | -3/Research | Destroyed 9 combat bots 15665 | -3/Research | Discovered new exit (range 5) 15665 | -3/Research | Identified exit to Quarantine 15743 | -3/Research | Reached level 31 15746 | -3/Research | Upgraded with Utility slot (x1) 15749 | -3/Research | Spotted Investigator 15754 | -3/Research | Scanned by Researcher 15770 | -3/Research | Destroyed Investigator 15774 | -3/Research | Destroyed 19 combat bots 15862 | -3/Research | Destroyed 14 combat bots 15940 | -3/Research | Discovered new exit (range 4) 15941 | -3/Research | Identified exit to Armory 15962 | -3/Research | Spotted B-86 Titan 15965 | -3/Research | Destroyed 9 combat bots 15968 | -3/Research | Build established: Hacker-Scout 15968 | -3/Research | Destroyed B-86 Titan 16041 | -3/Research | Spotted B-86 Titan 16045 | -3/Research | Destroyed B-86 Titan 16099 | -3/Research | Research terminal network offline 16144 | -3/Research | Destroyed 7 combat bots 16177 | -3/Research | Discovered exit to Research (range 5) 16245 | -3/Research | Discovered exit to Research (range 8) 16251 | -3/Research | Discovered exit to Quarantine (range 4) 16256 | -3/Research | Destroyed 9 combat bots 16256 | -3/Research | Entered Quarantine 16360 | -3/Quarantine | High security lockdown imminent 16407 | -3/Quarantine | Found Alien Artifact 16407 | -3/Quarantine | Identified Core Reset Matrix 16407 | -3/Quarantine | Reached level 32 16407 | -3/Quarantine | Used Core Reset Matrix 16410 | -3/Quarantine | Discovered exit to Research (range 6) 16411 | -3/Quarantine | Detected hypermatrix surge 16411 | -3/Quarantine | Sensed 11 artifacts in vicinity 16427 | -3/Quarantine | Cryocooling Duct disabled 16427 | -3/Quarantine | Cryocooling Duct disabled 16440 | -3/Quarantine | High security lockdown engaged 16442 | -3/Quarantine | Ambient heat levels rising (+40) 16466 | -3/Quarantine | Spotted Alpha 7 16468 | -3/Quarantine | Destroyed Alpha 7 16541 | -3/Quarantine | Met incapacitated Sigix Warrior 16541 | -3/Quarantine | Lockdown squad dispatched 16545 | -3/Quarantine | Found Sigix Containment Pod 16560 | -3/Quarantine | Spotted Lightning 16571 | -3/Quarantine | Spotted Lightning 16571 | -3/Quarantine | Spotted Lightning 16574 | -3/Quarantine | Destroyed Lightning 16577 | -3/Quarantine | Spotted Executioner 16599 | -3/Quarantine | Destroyed Lightning 16602 | -3/Quarantine | Destroyed Executioner 16604 | -3/Quarantine | Spotted Investigator 16608 | -3/Quarantine | Destroyed Lightning 16634 | -3/Quarantine | Destroyed 13 combat bots 16699 | -3/Quarantine | Found Hpw. Transdimensional Reconstructor 16699 | -3/Quarantine | Warped through subspace 16706 | -3/Quarantine | Destroyed 10 combat bots 16740 | -3/Quarantine | Spotted Striker 16740 | -3/Quarantine | Spotted Executioner 16765 | -3/Quarantine | Destroyed Striker 16780 | -3/Quarantine | Destroyed Executioner 16808 | -3/Quarantine | Destroyed 14 combat bots 16827 | -3/Quarantine | Spotted Striker 16837 | -3/Quarantine | Destroyed Striker 16946 | -3/Quarantine | Spotted Executioner 16947 | -3/Quarantine | Destroyed Executioner 16948 | -3/Quarantine | Spotted Striker 17026 | -3/Quarantine | Destroyed 20 combat bots 17189 | -3/Quarantine | Destroyed Investigator 17210 | -3/Quarantine | Spotted Striker 17226 | -3/Quarantine | Destroyed Striker 17284 | -3/Quarantine | Destroyed 27 combat bots 17409 | -3/Quarantine | Sterilization system engaged 17409 | -3/Quarantine | Non-combat units ordered to evacuate 17460 | -3/Quarantine | Found Hpw. Transdimensional Reconstructor 17509 | -3/Quarantine | Combat units ordered to evacuate 17689 | -3/Quarantine | Build established: Scavenger-Scout 17709 | -3/Quarantine | Ambient heat levels rising (+10) 17725 | -3/Quarantine | Found Subatomic Replicator 17749 | -3/Quarantine | Entered Research 17749 | -2/Research | Warlord forces began assault on 0b10 17751 | -2/Research | Reached level 33 17774 | -2/Research | Distinguished unit "Knights of the Pentagonal Table" dispatched to help 17774 | -2/Research | Distinguished unit "Smaug Mourners" dispatched to help 17852 | -2/Research | Met up with Warlord 17858 | -2/Research | Identified exit to Access 17859 | -2/Research | Research machine network offline 17872 | -2/Research | Spotted B-90 Cyclops 17878 | -2/Research | Destroyed B-90 Cyclops 17962 | -2/Research | High security lockdown imminent 18015 | -2/Research | Discovered new exit (range 11) 18016 | -2/Research | Spotted Striker 18017 | -2/Research | Identified exit to Testing 18042 | -2/Research | High security lockdown engaged 18070 | -2/Research | Spotted Striker 18076 | -2/Research | Destroyed Striker 18084 | -2/Research | Spotted Striker 18084 | -2/Research | Spotted Striker 18090 | -2/Research | Destroyed Striker 18093 | -2/Research | Destroyed Striker 18129 | -2/Research | Destroyed 13 combat bots 18130 | -2/Research | Lost 3 allies 18134 | -2/Research | Spotted OZ-2PG(K) 18134 | -2/Research | Destroyed OZ-2PG(K) 18200 | -2/Research | Discovered exit to Testing (range 10) 18216 | -2/Research | Spotted Executioner 18216 | -2/Research | Spotted Striker 18217 | -2/Research | Spotted Executioner 18246 | -2/Research | Destroyed Striker 18267 | -2/Research | Destroyed 14 combat bots 18282 | -2/Research | Spotted Striker 18283 | -2/Research | Spotted Executioner 18300 | -2/Research | Borebot progress halted 18303 | -2/Research | Reached level 34 18306 | -2/Research | Destroyed Striker 18308 | -2/Research | Destroyed Executioner 18334 | -2/Research | Spotted B-90 Cyclops 18336 | -2/Research | Destroyed 10 combat bots 18346 | -2/Research | Spotted Executioner 18351 | -2/Research | Destroyed Executioner 18365 | -2/Research | Destroyed B-90 Cyclops 18394 | -2/Research | Borebot progress halted 18419 | -2/Research | Destroyed 13 combat bots 18474 | -2/Research | Spotted Executioner 18474 | -2/Research | Spotted Striker 18490 | -2/Research | Destroyed Executioner 18527 | -2/Research | Spotted Striker 18541 | -2/Research | Destroyed Striker 18549 | -2/Research | Spotted Executioner 18574 | -2/Research | Destroyed Executioner 18629 | -2/Research | Spotted Striker 18641 | -2/Research | Destroyed Striker 18668 | -2/Research | Spotted B-90 Cyclops 18672 | -2/Research | Destroyed B-90 Cyclops 18693 | -2/Research | Destroyed 37 combat bots 18777 | -2/Research | Borebot progress halted 18997 | -2/Research | Warlord invited to help at Command 18997 | -2/Research | Given Cave Seal Controls access code 18999 | -2/Research | Met DD-05H 19010 | -2/Research | Spotted Striker 19013 | -2/Research | Destroyed Striker 19028 | -2/Research | Met PL-HR7 19043 | -2/Research | Entered Testing 19045 | -2/Testing | Reached level 35 19064 | -2/Testing | Found Exp. Signal Interpreter 19069 | -2/Testing | Destroyed 7 combat bots 19086 | -2/Testing | Found Prototype Energy Cannon 19086 | -2/Testing | Identified Hpw. Disruptor Cannon 19111 | -2/Testing | Spotted Fortress 19124 | -2/Testing | Destroyed Fortress 19127 | -2/Testing | Found Prototype Device 19127 | -2/Testing | Identified Exp. EM Shield 19148 | -2/Testing | Garrison activated, responded to threat 19185 | -2/Testing | Destroyed 7 combat bots 19196 | -2/Testing | Discovered exit to Access (range 10) 19198 | -2/Testing | Spotted PX-I9L3HZ5G1C 19210 | -2/Testing | Destroyed PX-I9L3HZ5G1C 19222 | -2/Testing | Found Prototype Processor 19222 | -2/Testing | Identified Exp. Targeting Computer 19238 | -2/Testing | Spotted Striker 19239 | -2/Testing | Spotted Striker 19242 | -2/Testing | Spotted PX-C8DHXAZCXK 19246 | -2/Testing | Destroyed PX-C8DHXAZCXK 19249 | -2/Testing | High security lockdown imminent 19249 | -2/Testing | Destroyed Striker 19251 | -2/Testing | Destroyed Striker 19253 | -2/Testing | Spotted Alpha 7 19259 | -2/Testing | Destroyed Alpha 7 19300 | -2/Testing | Found Prototype Device 19300 | -2/Testing | Identified Exp. Transmission Jammer 19329 | -2/Testing | High security lockdown engaged 19376 | -2/Testing | Destroyed 9 combat bots 19381 | -2/Testing | System corruption reached 10% 19402 | -2/Testing | Discovered new exit (range 6) 19402 | -2/Testing | Discovered new exit (range 7) 19403 | -2/Testing | Identified exit to Protoforge 19403 | -2/Testing | Entered Protoforge 19404 | -2/Protoforge | Sensed 2 artifacts in vicinity 19405 | -2/Protoforge | Spotted B-90 Cyclops 19415 | -2/Protoforge | Targeted by mysterious "MATRIX" hacker. 19421 | -2/Protoforge | Superfortress began startup sequence 19518 | -2/Protoforge | Found Prototype Slashing Weapon 19518 | -2/Protoforge | Identified Exp. Terror Saw 19523 | -2/Protoforge | Found Prototype Device 19523 | -2/Protoforge | Identified Cep. Recoil Nullifier 19528 | -2/Protoforge | Found Prototype Launcher 19528 | -2/Protoforge | Identified Cep. Concussive Dispersal Blaster 19583 | -2/Protoforge | Found Prototype Device 19583 | -2/Protoforge | Identified Crosscalibrator 19586 | -2/Protoforge | Found Prototype Energy Gun 19586 | -2/Protoforge | Identified Cep. Variable Chargecaster 19590 | -2/Protoforge | Destroyed 10 combat bots 19591 | -2/Protoforge | Spotted Immortal 19591 | -2/Protoforge | Spotted Decapitator 19591 | -2/Protoforge | Spotted Decapitator 19591 | -2/Protoforge | Spotted Decapitator 19591 | -2/Protoforge | Spotted Decapitator 19592 | -2/Protoforge | Destroyed Immortal 19604 | -2/Protoforge | Found Prototype Device 19604 | -2/Protoforge | Identified Exp. Cloaking Device 19605 | -2/Protoforge | Found Prototype Device 19605 | -2/Protoforge | Identified Cep. Antimissile System 19607 | -2/Protoforge | Found Prototype Processor 19607 | -2/Protoforge | Identified Exp. Melee Analysis Suite 19621 | -2/Protoforge | Found Femtoactuators 19622 | -2/Protoforge | Found Prototype Device 19622 | -2/Protoforge | Identified Cep. Hypertargeting System 19625 | -2/Protoforge | Found Prototype Device 19625 | -2/Protoforge | Identified Exp. Force Booster 19635 | -2/Protoforge | Found Cep. Melee Reflex Suite 19651 | -2/Protoforge | Destroyed Decapitator 19651 | -2/Protoforge | Destroyed Decapitator 19651 | -2/Protoforge | Destroyed Decapitator 19651 | -2/Protoforge | Destroyed Decapitator 19672 | -2/Protoforge | Found Prototype Device 19672 | -2/Protoforge | Identified Exp. Shield Generator 19682 | -2/Protoforge | Spotted V557-x 19685 | -2/Protoforge | Destroyed V557-x 19694 | -2/Protoforge | Found Prototype Processor 19694 | -2/Protoforge | Identified Exp. Armor Integrity Analyzer 19700 | -2/Protoforge | Found Prototype Power Core 19700 | -2/Protoforge | Identified Cep. Zero-point Core 19779 | -2/Protoforge | Spotted V534-f 19779 | -2/Protoforge | Spotted V679-w 19779 | -2/Protoforge | Spotted V538-v 19779 | -2/Protoforge | Spotted V319-a 19785 | -2/Protoforge | Destroyed V534-f 19797 | -2/Protoforge | Destroyed V538-v 19802 | -2/Protoforge | Destroyed V319-a 19802 | -2/Protoforge | Destroyed V679-w 19828 | -2/Protoforge | Found Prototype Device 19828 | -2/Protoforge | Identified Cep. Recoil Nullifier 19877 | -2/Protoforge | Build established: Scavenger-Ninja 19903 | -2/Protoforge | First assault squad dispatched 19945 | -2/Protoforge | Forge Plexus network access discovered 19959 | -2/Protoforge | Destroyed 13 combat bots 19975 | -2/Protoforge | Spotted Decapitator 19975 | -2/Protoforge | Spotted Decapitator 19975 | -2/Protoforge | Spotted V025-p 19975 | -2/Protoforge | Spotted V140-n 19975 | -2/Protoforge | Spotted Decapitator 19982 | -2/Protoforge | Destroyed Decapitator 19982 | -2/Protoforge | Destroyed Decapitator 19982 | -2/Protoforge | Destroyed Decapitator 19990 | -2/Protoforge | Destroyed V025-p 19992 | -2/Protoforge | Destroyed V140-n 19998 | -2/Protoforge | Found Exp. Terror Saw 20011 | -2/Protoforge | Spotted V130-y 20011 | -2/Protoforge | Spotted V130-t 20012 | -2/Protoforge | Spotted V387-b 20013 | -2/Protoforge | Destroyed 9 combat bots 20019 | -2/Protoforge | Destroyed V130-t 20024 | -2/Protoforge | Destroyed V387-b 20027 | -2/Protoforge | Destroyed V130-y 20029 | -2/Protoforge | Spotted V813-d 20033 | -2/Protoforge | Destroyed V813-d 20058 | -2/Protoforge | Spotted Decapitator 20058 | -2/Protoforge | Spotted Decapitator 20058 | -2/Protoforge | Spotted Decapitator 20061 | -2/Protoforge | Destroyed Decapitator 20061 | -2/Protoforge | Destroyed Decapitator 20061 | -2/Protoforge | Destroyed Decapitator 20104 | -2/Protoforge | Spotted V399-h 20104 | -2/Protoforge | Spotted V031-o 20105 | -2/Protoforge | Spotted V110-w 20108 | -2/Protoforge | Destroyed V110-w 20120 | -2/Protoforge | Destroyed V399-h 20121 | -2/Protoforge | Core integrity fell below 50% 20122 | -2/Protoforge | Spotted Immortal 20123 | -2/Protoforge | Spotted Immortal 20124 | -2/Protoforge | Destroyed V031-o 20149 | -2/Protoforge | Destroyed Immortal 20153 | -2/Protoforge | Destroyed Immortal 20163 | -2/Protoforge | Found Exp. Jetlance 20169 | -2/Protoforge | Found Cep. Deflector Sword 20172 | -2/Protoforge | Found Exp. Jetlance 20196 | -2/Protoforge | Found Exp. Jetlance 20310 | -2/Protoforge | Additional patrols dispatched to research labs 20312 | -2/Protoforge | Found Cep. Nanofilaments [Endoweave] 20312 | -2/Protoforge | Installed Cep. Nanofilaments [Endoweave], 5 resistances modified: KI +10%, TH +10%, EX -50%, S -20%, P +20% 20331 | -2/Protoforge | Spotted AP7-3 20331 | -2/Protoforge | Spotted AP7-3 20340 | -2/Protoforge | Destroyed AP7-3 20340 | -2/Protoforge | Reached level 36 20343 | -2/Protoforge | Destroyed AP7-3 20347 | -2/Protoforge | Found Cep. Core Analysis Suite 20349 | -2/Protoforge | Upgraded with Power slot (x1) 20349 | -2/Protoforge | Found Cep. Dimensional Manipulator 20368 | -2/Protoforge | Found Prototype Device 20368 | -2/Protoforge | Identified Exp. ECM Suite 20429 | -2/Protoforge | Destroyed 7 combat bots 20500 | -2/Protoforge | Destroyed 15 combat bots 20551 | -2/Protoforge | Found Cep. Deflector Sword 20716 | -2/Protoforge | Destroyed 15 combat bots 20918 | -2/Protoforge | Destroyed 15 combat bots 21038 | -2/Protoforge | Destroyed 7 combat bots 21093 | -2/Protoforge | Destroyed 10 combat bots 21247 | -2/Protoforge | Build established: Scavenger-Scout 21365 | -2/Protoforge | Destroyed 17 combat bots 21405 | -2/Protoforge | Destroyed 10 combat bots 21406 | -2/Protoforge | Spotted Striker 21406 | -2/Protoforge | Destroyed Striker 21414 | -2/Protoforge | High security lockdown imminent 21414 | -2/Protoforge | Destroyed Superfortress 21435 | -2/Protoforge | Spotted EXE-6 21435 | -2/Protoforge | Spotted EXE-6 21436 | -2/Protoforge | Destroyed EXE-6 21437 | -2/Protoforge | Destroyed EXE-6 21445 | -2/Protoforge | Spotted Decapitator 21446 | -2/Protoforge | Spotted Decapitator 21447 | -2/Protoforge | Destroyed Decapitator 21447 | -2/Protoforge | Destroyed Decapitator 21449 | -2/Protoforge | Spotted EXE-6 21449 | -2/Protoforge | Spotted EXE-6 21451 | -2/Protoforge | Destroyed EXE-6 21453 | -2/Protoforge | Destroyed EXE-6 21460 | -2/Protoforge | Spotted AP7-3 21460 | -2/Protoforge | Spotted AP7-3 21462 | -2/Protoforge | Destroyed AP7-3 21464 | -2/Protoforge | Destroyed AP7-3 21485 | -2/Protoforge | Destroyed 8 combat bots 21494 | -2/Protoforge | High security lockdown engaged 21501 | -2/Protoforge | Spotted Overlord 21507 | -2/Protoforge | Destroyed Overlord 21547 | -2/Protoforge | Spotted Hotshot 21547 | -2/Protoforge | Spotted Hotshot 21547 | -2/Protoforge | Spotted Hotshot 21548 | -2/Protoforge | Spotted Hotshot 21550 | -2/Protoforge | Spotted Hotshot 21562 | -2/Protoforge | Destroyed Hotshot 21568 | -2/Protoforge | Destroyed Hotshot 21570 | -2/Protoforge | Destroyed Hotshot 21574 | -2/Protoforge | Destroyed Hotshot 21576 | -2/Protoforge | Destroyed Hotshot 21596 | -2/Protoforge | Destroyed B-90 Cyclops 21600 | -2/Protoforge | Spotted Hotshot 21602 | -2/Protoforge | Destroyed Hotshot 21605 | -2/Protoforge | Spotted Hotshot 21605 | -2/Protoforge | Destroyed Hotshot 21607 | -2/Protoforge | Spotted Hotshot 21608 | -2/Protoforge | Destroyed Hotshot 21608 | -2/Protoforge | Spotted Hotshot 21609 | -2/Protoforge | Destroyed Hotshot 21610 | -2/Protoforge | Spotted Hotshot 21610 | -2/Protoforge | Destroyed Hotshot 21623 | -2/Protoforge | Spotted Hotshot 21633 | -2/Protoforge | Spotted Hotshot 21633 | -2/Protoforge | Spotted Hotshot 21633 | -2/Protoforge | Spotted Hotshot 21633 | -2/Protoforge | Spotted Hotshot 21636 | -2/Protoforge | Spotted Hotshot 21636 | -2/Protoforge | Spotted Hotshot 21657 | -2/Protoforge | Destroyed 19 combat bots 21672 | -2/Protoforge | Destroyed Hotshot 21674 | -2/Protoforge | Destroyed Hotshot 21675 | -2/Protoforge | Spotted Hotshot 21676 | -2/Protoforge | Destroyed Hotshot 21678 | -2/Protoforge | Spotted Hotshot 21678 | -2/Protoforge | Destroyed Hotshot 21680 | -2/Protoforge | Spotted Hotshot 21681 | -2/Protoforge | Destroyed Hotshot 21682 | -2/Protoforge | Destroyed Hotshot 21686 | -2/Protoforge | Destroyed Hotshot 21691 | -2/Protoforge | Destroyed Hotshot 21691 | -2/Protoforge | Destroyed Hotshot 21693 | -2/Protoforge | Destroyed Hotshot 21800 | -2/Protoforge | Spotted Investigator 21804 | -2/Protoforge | Destroyed 31 combat bots 21904 | -2/Protoforge | Destroyed Investigator 21953 | -2/Protoforge | Spotted Executioner 21962 | -2/Protoforge | Destroyed Executioner 21990 | -2/Protoforge | Spotted Executioner 22018 | -2/Protoforge | Destroyed 58 combat bots 22059 | -2/Protoforge | Destroyed Executioner 22082 | -2/Protoforge | System corruption reached 30% 22090 | -2/Protoforge | Spotted Striker 22104 | -2/Protoforge | Destroyed Striker 22104 | -2/Protoforge | Reached level 37 22127 | -2/Protoforge | Destroyed 13 combat bots 22139 | -2/Protoforge | Discovered exit to Access (range 4) 22165 | -2/Protoforge | Spotted Executioner 22165 | -2/Protoforge | Spotted Executioner 22170 | -2/Protoforge | Destroyed 9 combat bots 22188 | -2/Protoforge | Destroyed Executioner 22192 | -2/Protoforge | Destroyed Executioner 22200 | -2/Protoforge | Spotted Executioner 22201 | -2/Protoforge | Destroyed Executioner 22251 | -2/Protoforge | Destroyed 11 combat bots 22382 | -2/Protoforge | Destroyed 17 combat bots 22434 | -2/Protoforge | Destroyed 11 combat bots 22453 | -2/Protoforge | Destroyed Investigator 22468 | -2/Protoforge | Spotted Striker 22474 | -2/Protoforge | Spotted Executioner 22489 | -2/Protoforge | Destroyed Striker 22517 | -2/Protoforge | Destroyed Executioner 22542 | -2/Protoforge | Destroyed 20 combat bots 22566 | -2/Protoforge | Spotted Striker 22574 | -2/Protoforge | Destroyed Striker 22594 | -2/Protoforge | Spotted Striker 22594 | -2/Protoforge | Spotted Executioner 22596 | -2/Protoforge | Destroyed Striker 22598 | -2/Protoforge | Spotted Striker 22598 | -2/Protoforge | Destroyed Striker 22615 | -2/Protoforge | Destroyed Executioner 22629 | -2/Protoforge | Entered Access 22630 | -1/Access | Core integrity fell below 50% 22653 | -1/Access | High security lockdown imminent 22680 | -1/Access | Destroyed 25 combat bots 22704 | -1/Access | Spotted Striker 22705 | -1/Access | Destroyed Striker 22706 | -1/Access | Spotted Striker 22712 | -1/Access | Destroyed Striker 22726 | -1/Access | Spotted B-99 Colossus 22733 | -1/Access | High security lockdown engaged 22745 | -1/Access | Destroyed B-99 Colossus 22771 | -1/Access | Spotted Striker 22774 | -1/Access | Destroyed 13 combat bots 22791 | -1/Access | Destroyed Striker 22800 | -1/Access | Spotted Executioner 22802 | -1/Access | Lost 3 allies 22817 | -1/Access | Destroyed Executioner 22825 | -1/Access | Spotted Executioner 22825 | -1/Access | Destroyed Executioner 22880 | -1/Access | Destroyed 16 combat bots 22957 | -1/Access | Destroyed 10 combat bots 22966 | -1/Access | Spotted Striker 22967 | -1/Access | Destroyed Striker 22970 | -1/Access | Spotted Executioner 22973 | -1/Access | Destroyed Executioner 22995 | -1/Access | Reached level 38 23047 | -1/Access | Spotted B-99 Colossus 23048 | -1/Access | Spotted B-99 Colossus 23054 | -1/Access | Destroyed 23 combat bots 23058 | -1/Access | Destroyed B-99 Colossus 23061 | -1/Access | Destroyed B-99 Colossus 23081 | -1/Access | Discovered new exit (range 4) 23082 | -1/Access | Identified exit to Surface 23152 | -1/Access | Spotted Executioner 23153 | -1/Access | Spotted Executioner 23157 | -1/Access | Destroyed Executioner 23159 | -1/Access | Destroyed Executioner 23198 | -1/Access | Destroyed 18 combat bots 23242 | -1/Access | Spotted Striker 23243 | -1/Access | Spotted Striker 23245 | -1/Access | Destroyed Striker 23248 | -1/Access | Destroyed Striker 23254 | -1/Access | Spotted Executioner 23254 | -1/Access | Spotted Executioner 23257 | -1/Access | Destroyed Executioner 23259 | -1/Access | Destroyed Executioner 23280 | -1/Access | Destroyed 10 combat bots 23356 | -1/Access | Spotted Executioner 23356 | -1/Access | Spotted Striker 23362 | -1/Access | Destroyed Striker 23364 | -1/Access | Spotted Executioner 23368 | -1/Access | Destroyed Executioner 23381 | -1/Access | Spotted Striker 23381 | -1/Access | Spotted Executioner 23393 | -1/Access | Destroyed Executioner 23434 | -1/Access | Destroyed Striker 23455 | -1/Access | Destroyed 19 combat bots 23498 | -1/Access | Destroyed 8 combat bots 23616 | -1/Access | Spotted B-99 Colossus 23626 | -1/Access | Destroyed B-99 Colossus 23628 | -1/Access | Spotted Executioner 23628 | -1/Access | Spotted Executioner 23628 | -1/Access | Destroyed Executioner 23630 | -1/Access | Destroyed Executioner 23640 | -1/Access | Spotted B-99 Colossus 23646 | -1/Access | Destroyed B-99 Colossus 23667 | -1/Access | Destroyed 26 combat bots 23752 | -1/Access | Spotted Executioner 23752 | -1/Access | Destroyed Executioner 23790 | -1/Access | Destroyed 13 combat bots 23977 | -1/Access | Destroyed 19 combat bots 23978 | -1/Access | Spotted B-99 Colossus 23978 | -1/Access | Spotted B-99 Colossus 23987 | -1/Access | Destroyed B-99 Colossus 23995 | -1/Access | Destroyed B-99 Colossus 24016 | -1/Access | Discovered new exit (range 4) 24018 | -1/Access | Identified exit to Command 24022 | -1/Access | Entered Command 24024 | -1/Command | Reached level 39 24031 | -1/Command | Spotted B-99 Colossus 24037 | -1/Command | Destroyed B-99 Colossus 24072 | -1/Command | High security lockdown imminent 24085 | -1/Command | Spotted Executioner 24112 | -1/Command | Destroyed Executioner 24115 | -1/Command | Spotted Executioner 24117 | -1/Command | Destroyed Executioner 24138 | -1/Command | Destroyed 29 combat bots 24152 | -1/Command | High security lockdown engaged 24194 | -1/Command | Destroyed 10 combat bots 24236 | -1/Command | Spotted Striker 24238 | -1/Command | Spotted Striker 24238 | -1/Command | Spotted Executioner 24238 | -1/Command | Spotted Executioner 24238 | -1/Command | Spotted Alpha 7 24238 | -1/Command | Spotted Executioner 24238 | -1/Command | Spotted Executioner 24239 | -1/Command | Spotted Alpha 7 24247 | -1/Command | System corruption reached 10% 24268 | -1/Command | Phase Generator disabled 24289 | -1/Command | Spotted Striker 24289 | -1/Command | Spotted Executioner 24303 | -1/Command | Destroyed Striker 24313 | -1/Command | Destroyed Executioner 24320 | -1/Command | Found Exp. Core Analyzer 24334 | -1/Command | Destroyed 9 combat bots 24387 | -1/Command | Spotted Investigator 24387 | -1/Command | Destroyed Investigator 24414 | -1/Command | Destroyed 13 combat bots 24419 | -1/Command | Spotted M Guard 24419 | -1/Command | Spotted M Guard 24494 | -1/Command | Spotted Striker 24494 | -1/Command | Spotted Executioner 24515 | -1/Command | Destroyed Striker 24519 | -1/Command | Destroyed Executioner 24558 | -1/Command | Spotted Striker 24564 | -1/Command | Destroyed Striker 24582 | -1/Command | Spotted Executioner 24586 | -1/Command | Destroyed Executioner 24616 | -1/Command | Spotted Striker 24619 | -1/Command | Destroyed Striker 24627 | -1/Command | Spotted Executioner 24627 | -1/Command | Spotted Striker 24629 | -1/Command | Destroyed Executioner 24629 | -1/Command | Destroyed Striker 24652 | -1/Command | Destroyed 20 combat bots 24699 | -1/Command | Spotted Executioner 24705 | -1/Command | Destroyed Executioner 24794 | -1/Command | Spotted Executioner 24794 | -1/Command | Spotted Executioner 24794 | -1/Command | Spotted Striker 24799 | -1/Command | Destroyed Striker 24803 | -1/Command | Destroyed Executioner 24804 | -1/Command | Destroyed Executioner 24838 | -1/Command | Spotted Executioner 24838 | -1/Command | Spotted Executioner 24840 | -1/Command | Destroyed 13 combat bots 24855 | -1/Command | Destroyed Executioner 24859 | -1/Command | Destroyed Executioner 24893 | -1/Command | Spotted Executioner 24894 | -1/Command | Destroyed Executioner 24916 | -1/Command | Destroyed 15 combat bots 24925 | -1/Command | Spotted Striker 24927 | -1/Command | Destroyed Striker 24931 | -1/Command | Spotted Executioner 24934 | -1/Command | Destroyed Executioner 24934 | -1/Command | Spotted Executioner 24934 | -1/Command | Spotted Executioner 24934 | -1/Command | Spotted Executioner 24936 | -1/Command | Spotted Executioner 24937 | -1/Command | Spotted Executioner 24937 | -1/Command | Destroyed Executioner 24937 | -1/Command | Destroyed Executioner 24937 | -1/Command | Destroyed Executioner 24948 | -1/Command | Spotted Executioner 24950 | -1/Command | Spotted Executioner 24950 | -1/Command | Spotted Executioner 24950 | -1/Command | Spotted Executioner 24950 | -1/Command | Spotted Executioner 24950 | -1/Command | Destroyed Executioner 24950 | -1/Command | Spotted Executioner 24953 | -1/Command | Destroyed Executioner 24954 | -1/Command | Spotted Executioner 24954 | -1/Command | Spotted Executioner 24957 | -1/Command | Destroyed Executioner 24960 | -1/Command | Destroyed Executioner 24962 | -1/Command | Destroyed Executioner 24967 | -1/Command | Spotted Executioner 24969 | -1/Command | Destroyed Executioner 24973 | -1/Command | Destroyed Executioner 24986 | -1/Command | Destroyed Executioner 24991 | -1/Command | Destroyed Executioner 24993 | -1/Command | Destroyed Executioner 24996 | -1/Command | Destroyed Executioner 25082 | -1/Command | Destroyed 49 combat bots 25181 | -1/Command | Destroyed 15 combat bots 25240 | -1/Command | Emitted hypermatrix ping 25243 | -1/Command | Assembled emerged from beneath the floor 25245 | -1/Command | Assembled emerged from beneath the floor 25255 | -1/Command | Spotted Executioner 25256 | -1/Command | Destroyed Executioner 25271 | -1/Command | Self-destructed Last Messages --------------- 25261_ Destroyed Imp. Remote Force Field. 25261_ Plasma Lance follow-up attack on I-47 Archangel. 25261_ I-47 Archangel destroyed. 25261_ Slug penetrates L-61 Swordsman. 25262_ System corrupted: Matter fused (-5). 25262_ L-61 Swordsman destroyed. 25262_ G-73 Enforcer suffers critical hit (Burn). 25263_ Acquired 5 matter. 25263_ G-73 Enforcer Unknown Leg severed. 25263_ Exp. Jetlance follow-up attack on G-73 Enforcer. 25263_ G-73 Enforcer suffers critical hit (Impale). 25263_ Destroyed Unknown Reactor. 25263_ Plasma Lance follow-up attack on G-73 Enforcer. 25263_ Unknown Leg melted. 25263_ G-73 Enforcer destroyed. 25267_ B-74 Champion Unknown Treads severed. 25267_ Exp. Jetlance follow-up attack on B-74 Champion. 25268_ B-74 Champion destroyed. 25270_ Used Protomatter to restore core integrity (+207, depleted) [Achievement: 150k Club] Map ----- +----------------------------------------------------+ | | | | | ?????????????????###############?????????????????? | | ?????????????????# #?????????????????? | | ?????????????????# #?????????????????? | | ?????????????????# = #?????########??### | | ?????????????????# #?????# #??# | | ?????????????????# #?????# =!!##?# | | ?????????????????# [[m #?????# =!![#?# | | ?????????????????####+#####=########## !!%#??# | | ?????????????????# =[%#?#%!=*[!%%=## !%#??# | | ?????????????????# !=%!#?#[!%!!=%**## =%=*#???? | | ?????????????????# [![###!["=""!=!#####+######## | | ?????????????????# "[%*!!+[*!*"/!= " m%= | | ?????????????????# [*###=*!*%!![ # | | ?????????????????# [#?#%!!%!%*[!############## | | ???? s?????????### ###?#[k=!==!!*#???????????? | | ???# ss???????????#*=#???#%!%=*!!=*#???????????# | | ???? s???????????#^=#???#==##################?# | | ???? sss???????????#==#???#%##???????# !!* #?# | | ???? s???????????##!a##??#=########## !** #?# | | ???? ss???????????#!=!!####!*=[!! # !* #?# | | ????# ???????????#![%=!!!%a![%! # #?## | | ????# ???????????#[[==aa[!!!%= / ! #??? | | ????# #??????###?#[!!%##!!a%=[[ # #??? | | ????# #?????##!####!%###@==%== # #??? | | ???# #?????#===#?#[%#?#aa^%[ # #??? | | ???# #?????#=/!### [#?#[%[[=% # =#??? | | ??#= #?????#[% # #*[#?#=[ %== ##########??? | | ###]/########%% =###!*=*! #???????????? | | =!%=*[!*%=[= %!% = ##[%%m[ #???????????? | | ==/!%=ggggg!!!%* !###%==[ " #???????????? | | gggggggggg* =!%%|###*= """ #???????????? | | "gggggCg[**![ %[=!=# =!!! k """ #???????????? | | ### g######! =[ #%=#*!]]^ "" #???????????? | | ???#Cg#????##%%%### *###! ^ #???????????? | | ????#gg#?????#* =#?#[=#?# #???????????? | | ????#gg#?????#*=/#?#!!#?# #???????????? | | ????# g#?????#####?#%!#?# !!! #???????????? | | ????# g#???????????#%%#?# !!! ####????????? | | ????#*=#???????????#/[#?# !!!* """#????????? | | ????#[%#???????????#!!### = [ T"#????? ??? | | ???# !! ???????????# * """######"##? | | ???# ???????????# =%=* #### #? | | ???# #??????????# [%=%=#??# #? | | ???# #??????????# ###########/####### ## | | ???# #??????????# ######?# ## ! # | | ???# #??????????# #?# * ## # | | ???## ###??????????# #?# ## # | | ????# ?????????????###### #?# " " ## #= | +----------------------------------------------------+ Best States ------------- Heat Dissipation 85 Coolant Potential 100 Energy Generation 88 Energy Capacity 1050 Matter Stores 300 Matter Capacity 300 Sight Range 26 Robot Scan Range 24 Terrain Scan Density 10 Cloak Strength 4 Additional Mass Support 30 Armor Coverage 225 Resistance: KI 30 Resistance: TH 30 Resistance: EX 20 Resistance: P 20 Point Defense Rating 480 Projectile Deflection 15 Melee Speed Boost 50 Evasion (%) 82 Melee Accuracy 12 Core Analysis 15 Armor Integrity Analysis 50 Recoil Reduction 2 Energy Filtering 50 Force Boost 40 Offensive Hacking 21 Defensive Hacking 5 Item Schematics ----------------- Exp. Signal Interpreter | -2/Testing | Archive Ionic Axe | -2/Testing | Archive Cld. Field Propulsion Drive | -2/Testing | Archive Exp. Biometal Medium Treads | -2/Protoforge | Archive Enh. Gamma Bomb Array | -2/Protoforge | Archive Exp. Thermal Defense Suite | -2/Protoforge | Archive Exp. Biometal Heavy Treads | -2/Protoforge | Archive Helical Railgun | -2/Protoforge | Archive Imp. KE Penetrator | -2/Protoforge | Archive Exp. EM Shield | -2/Protoforge | Archive Hvy. Hardcell Cannon | -2/Protoforge | Archive Hds. Centrium Leg | -2/Protoforge | Archive Gui. Micro-nuke Launcher | -2/Protoforge | Archive Com. Linear Accelerator | -2/Protoforge | Archive Exp. Target Analyzer | -2/Protoforge | Archive Vibroblade | -2/Protoforge | Archive Exp. Hacking Suite | -2/Protoforge | Archive Adv. Micro-nuke Launcher | -2/Protoforge | Archive Hvy. Tesla Rifle | -2/Protoforge | Archive Enh. Force Rifle | -2/Protoforge | Archive Tactical Quantum Warhead | -2/Protoforge | Archive Enh. Biometal Leg | -2/Protoforge | Archive Shock Maul | -2/Protoforge | Archive Exp. Thermal Shield | -2/Protoforge | Archive Com. Particle Reactor | -2/Protoforge | Archive Exp. System Shield | -2/Protoforge | Archive Plasma Lance | -2/Protoforge | Archive Robot Schematics ------------------ R-06 Scavenger | -2/Testing | Archive T-07 Excavator | -2/Protoforge | Archive G-73 Enforcer | -2/Protoforge | Archive S-43 Plague | -2/Protoforge | Archive L-61 Swordsman | -2/Protoforge | Archive A-27 Freighter | -2/Protoforge | Archive K-01 Serf | -2/Protoforge | Archive Fabricated ------------ Nothing Repaired ---------- Nothing Studied --------- Mic. Antimatter Reactor | -2/Testing | Hacked Alien Tech Used ----------------- Core Reset Matrix High-powered Transdimensional Reconstructor Concept Nanofilaments [Endoweave] Achievements -------------- 150k Club 404 Assassin Dominance Asserted Gladiator Highlander IP Theft Into The Furnace Martial Artist No Explosion For You Out Of My Way Short-term Sacrifices Challenges ------------ None RPGLIKE | -11 -10 -10 -10 -8 -8 -7 -7 -7 -6 -6 -6 -6 -5 -5 -5 -5 -4 -4 -4 -4 -4 -4 -4 -3 -3 -2 -2 -2 -1 -1 --------- Run | Yrd Mat Min Sub Mat Gar Fac Low Low Fac Gar Fac Gar Fac Upp Upp War Pro Fac Ext Cet Arc Hub Gar Res Qua Res Tes Frg Acc Com Levels Raised 38 | . 2 1 1 5 3 4 . . 2 1 . 2 3 . . 1 1 1 . . 1 . . 2 1 2 1 2 1 1 XP Earned 61195 | 3000 3229 1450 1867 8256 3633 5651 323 336 2543 1585 1062 1575 4965 366 179 1287 835 1762 760 295 113 706 672 2581 1680 3221 556 2700 2639 1368 XP Spent 59900 | 2970 2965 1500 1560 7490 2915 5075 2135 . 2850 . 1950 2500 3350 . . 3000 1620 . . . . 2000 . 3450 1530 2015 2975 1250 3360 1440 Upgrades 118 | 17 8 2 4 18 4 10 2 . 2 . 5 2 2 . . 3 4 . . . . 1 . 3 2 4 7 2 12 4 Power Slot 1 | . . . . . . . . . . . . . . . . . . . . . . . . . . . . 1 . . Propulsion Slot 5 | 1 . . 1 . 1 1 . . . . . 1 . . . . . . . . . . . . . . . . . . Utility Slot 9 | 1 . 1 . 2 . 1 1 . 1 . . . 1 . . . . . . . . . . 1 . . . . . . Weapon Slot 6 | 1 1 . . 1 1 . . . . . . . . . . 1 . . . . . 1 . . . . . . . . Core Integrity 36 | 4 1 . 2 2 1 1 1 . . . . . . . . . . . . . . . . . . 3 5 . 12 4 Heat Dissipation 10 | 3 . . . 3 . . . . . . . . . . . . 3 . . . . . . . 1 . . . . . Energy Generation 7 | . . . . 1 . . . . 1 . . 1 . . . . 1 . . . . . . . 1 1 1 . . . Energy Storage 1 | . . . . . . . . . . . . . . . . . . . . . . . . . . . 1 . . . Mass Support 3 | 1 . . 1 1 . . . . . . . . . . . . . . . . . . . . . . . . . . Inventory Capacity 3 | 1 . . . . . 1 . . . . . . . . . . . . . . . . . . . . . 1 . . Sight Range 2 | . 1 . . . 1 . . . . . . . . . . . . . . . . . . . . . . . . . Sensor Range 12 | 4 . . . 8 . . . . . . . . . . . . . . . . . . . . . . . . . . Ranged Accuracy 1 | 1 . . . . . . . . . . . . . . . . . . . . . . . . . . . . . . Melee Accuracy 6 | . 5 1 . . . . . . . . . . . . . . . . . . . . . . . . . . . . Hack Attack % 3 | . . . . . . . . . . . 3 . . . . . . . . . . . . . . . . . . . Hack Defense % 1 | . . . . . . . . . . . 1 . . . . . . . . . . . . . . . . . . . KI Resistance % 4 | . . . . . . 2 . . . . 1 . 1 . . . . . . . . . . . . . . . . . TH Resistance % 4 | . . . . . . 2 . . . . . . . . . 2 . . . . . . . . . . . . . . EX Resistance % 4 | . . . . . . 2 . . . . . . . . . . . . . . . . . 2 . . . . . . Protomatter Created 41029 | . 352 81 80 654 589 653 41 217 294 415 473 1181 2686 364 188 1695 535 1036 463 58 152 1382 1050 1738 3672 2340 474 8890 4844 4432 Integrity Restored 50310 | . 615 127 348 1170 1244 1248 117 260 278 525 761 1255 3332 1025 275 3183 485 1409 496 330 309 827 1461 2114 2870 4021 1037 9004 5523 4661 Core 40524 | . 615 66 348 1170 950 1095 48 200 153 408 642 934 2835 608 203 2689 300 1082 404 330 192 713 1223 1615 2314 3223 859 7377 4025 3903 Parts 9786 | . . 61 . . 294 153 69 60 125 117 119 321 497 417 72 494 185 327 92 . 117 114 238 499 556 798 178 1627 1498 758 Protomatter Decayed 20178 | . 49 37 . 36 142 85 . 109 192 277 253 622 997 . 90 371 263 426 328 . . 929 299 2951 2600 4803 157 1456 2077 629 Game ------ Seed MiniBackupProtection Manual? 0 Play Time 08:21:34 Cumulative 475.4 hours Start 2026.02.20 @ 22:32:19 End 2026.02.22 @ 05:28:23 Sessions 6 Manual Loads 0 Difficulty Rogue Special Mode Winter2019/RPGLIKE Game No. 227 Rogue 227 Adventurer 0 Explorer 0 Win Type - Total 14 Types 9/0/2/0/0/0/0/1/0/2 Lore% 86 Gallery% 81 Achievement% 67 Wizard Run 0 Options --------- Layout 0 ASCII 0 Keyboard 0 Movement Mouse Keybinds 0 Fullscreen 1 Font 18/SmallcapsGlow Map View 76x50 Zoom Use 0% Tactical HUD 1 Map Filters NONE Filters NONE Steam 1 RUN: a7a3dffb-4b2e-48f2-ae9f-1a40763bd8f9